{"text_format":"1","workbook":"xlsx","n_sheets":3,"sheets":["請求事務の流れ","【一覧表】特定子ども・子育て支援提供証明書兼領収証","【保護者用】特定子ども・子育て支援提供証明書兼領収証"],"not_rendered":{"charts":0,"images":0,"macros":1,"external_links":0,"defined_names":5,"comments":1,"pivot_tables":0},"unopened":[],"bounds":{"document_bytes":16777216,"sheet_cells":100000,"rows_first":2000,"rows_last":500,"rows_between":2000,"halvings":0,"cell_chars":16384,"cell_head_chars":4096},"cells_cut":0,"cells_raw":0,"read":"whole","date_system":"1900"}

{"sheet":"請求事務の流れ","index":0,"n_rows":37,"n_cols":2,"rows_kept":37,"cut":false,"hidden":false,"merged":[[35,0,35,1],[36,0,36,1],[4,0,4,1],[26,0,27,0],[28,0,28,1],[33,0,33,1],[34,0,34,1],[25,0,25,1],[29,0,31,0],[22,0,23,0],[1,0,1,1],[6,0,6,1],[7,0,7,1],[14,0,14,1],[18,0,19,0]]}
[null,"大阪府吹田市"]
["特定子ども・子育て支援提供証明書兼領収証、請求書作成ツール"]
[null,"【R8版】"]
["はじめに"]
["　本ツールは、認可外保育施設等の無償化に係る特定子ども・子育て支援提供証明書兼領収書を作成するためのツールです。各施設・事業所者様におかれましては、本ツールを無償化事務にぜひ御活用ください。\n　なお、特定子ども・子育て支援提供証明書兼領収書の作成にあたっては、本ツール以外に施設・事業者で用意されているツールや手書きでの作成をいただいても結構ですが、必要な事項の記載がない場合は、書類の再提出をお願いする場合がありますので御了承ください。"]
[]
["１　請求事務の流れ"]
["※表中の色付き文字は、該当するシートの見出しの色に対応しています。記入例も併せて参照してください。"]
["＜　吹田市　⇒　施設・事業者　＞"]
["年度当初","施設等利用給付認定　認定者リストの提供\n※年度当初時点で施設等利用給付認定を受けている方のリストをお送りします。"]
["毎月上旬・中旬","施設等利用給付認定　異動者リストの提供\n※新たに認定を受けた方または取消された方のリストをお送りします。"]
[]
["＜　施設・事業者　＞"]
["提供月の\n上旬～下旬","利用者の確認（認定情報・利用実績の確認、月途中入退園・認定開始終了・転出入の確認）"]
["↓"]
["翌月以降","「【一覧表】特定子ども・子育て支援提供証明書兼領収証」の入力"]
[]
["＜　施設・事業者　⇒　保護者　＞"]
["３か月ごと※","「【保護者用】特定子ども・子育て支援提供証明書兼領収証」を全件印刷し、代表者役職・名 に押印のうえ、保護者へ交付\n※特定子ども・子育て支援提供証明書兼領収証と施設等利用費請求書が一体となっています。いずれの様式も保護者に交付してください。（施設等利用費請求書の発行が難しい場合は、吹田市へご相談ください。）\n※下記のスケジュールを参考に、3か月ごとに保護者の方に交付してください。ただし、途中退園される方には、随時交付してください。（スケジュール内に交付が難しい場合は、吹田市へご相談ください。）"]
[null,"※提供証明書兼領収証発行スケジュール\n4～6月分：7月中旬まで　7～9月分：10月中旬まで　10～12月分：1月中旬まで　1～3月分：4月中旬まで"]
[]
["＜　施設・事業者　⇒　吹田市　＞"]
["【指定の施設・事業者のみ】\n３か月ごと※","吹田市保育幼稚園室へ、【一覧表】特定子ども・子育て支援提供証明書兼領収証」のデータを提出。\n※提出が必要な施設・事業者は事前に吹田市から指定させていただきます。\n※個人情報が含まれますので、吹田市が指定する方法で提出してください。\n※下記のスケジュールを参考に、3か月ごとに吹田市へ提出してください。（スケジュール内に提出が難しい場合は、吹田市へご相談ください。）"]
[null,"※データ提出スケジュール\n4～6月分：7月下旬まで　7～9月分：10月下旬まで　10～12月分：1月下旬まで　1～3月分：4月下旬まで"]
[]
["＜　保護者　⇒　吹田市　＞"]
["３か月ごと※","保護者から吹田市保育幼稚園室へ「特定子ども・子育て支援提供証明書兼領収証」及び「施設等利用費請求書」を３か月分まとめて提出。（施設・事業者での取りまとめが可能な場合は、取りまとめて提出をお願いします。）"]
[null,"※施設等利用費請求書の提出時期（詳細は、「施設等利用費請求に係る事務の手引き」を参照してください。\n4～6月分：7月下旬まで　7～9月分：10月下旬まで　10～12月分：1月下旬まで　1～3月分：4月下旬まで"]
["↓"]
["請求月の\n翌々月末以降","吹田市から保護者へ施設等利用費を振込"]
[null,"※受付期間中に吹田市保育幼稚園室に提出された請求書については、請求月の翌々月末を目途にお支払します。提出が遅れた方や書類に不備がある場合は支払時期が遅れる場合があります。"]
[null,"※施設等利用費の振込時期\n4～6月分：9月末　　7～9月分：12月末　　10～12月分：3月末　　1～3月分：6月末"]
[]
["２　特定子ども・子育て支援提供証明書兼領収証等作成に当たっての留意事項"]
["①このエクセルファイルを開く際は、「マクロを有効にする」を選択してください。（有効でないと【保護者用】特定子ども・子育て支援提供証明書兼領収証の自動印刷機能が動作しません）"]
["②「【一覧表】特定子ども・子育て支援提供証明書兼領収証」の「NO」は児童氏名（フリガナ）を入力することで付番されます。空白の列があると正しく付番されませんので、空白の列は列ごと削除するか、データを上書きしてください。"]
["③「【一覧表】特定子ども・子育て支援提供証明書兼領収証」の「宛名コード」は、吹田市から施設・事業者にお送りする施設等利用給付認定者一覧表又は施設等利用給付認定異動者リストに記載されていますので、転記してください。不明な場合は空欄で提出してください。"]

{"sheet":"【一覧表】特定子ども・子育て支援提供証明書兼領収証","index":1,"n_rows":208,"n_cols":52,"rows_kept":208,"cut":false,"hidden":false,"merged":[[13,51,13,53],[4,48,4,50],[5,36,7,36],[5,37,7,37],[5,39,7,39],[5,40,7,40],[5,45,7,45],[5,46,7,46],[5,43,7,43],[5,44,7,44],[4,31,4,46],[203,8,203,10],[203,13,203,14],[204,8,204,10],[204,13,204,14],[205,8,205,10],[205,13,205,14],[206,8,206,10],[206,13,206,14],[207,8,207,10],[207,13,207,14],[198,8,198,10],[198,13,198,14],[199,8,199,10],[199,13,199,14],[200,8,200,10],[200,13,200,14],[201,8,201,10],[201,13,201,14],[202,8,202,10],[202,13,202,14],[193,8,193,10],[193,13,193,14],[194,8,194,10],[194,13,194,14],[195,8,195,10],[195,13,195,14],[196,8,196,10],[196,13,196,14],[197,8,197,10],[197,13,197,14],[188,8,188,10],[188,13,188,14],[189,8,189,10],[189,13,189,14],[190,8,190,10],[190,13,190,14],[191,8,191,10],[191,13,191,14],[192,8,192,10],[192,13,192,14],[183,8,183,10],[183,13,183,14],[184,8,184,10],[184,13,184,14],[185,8,185,10],[185,13,185,14],[186,8,186,10],[186,13,186,14],[187,8,187,10],[187,13,187,14],[178,8,178,10],[178,13,178,14],[179,8,179,10],[179,13,179,14],[180,8,180,10],[180,13,180,14],[181,8,181,10],[181,13,181,14],[182,8,182,10],[182,13,182,14],[173,8,173,10],[173,13,173,14],[174,8,174,10],[174,13,174,14],[175,8,175,10],[175,13,175,14],[176,8,176,10],[176,13,176,14],[177,8,177,10],[177,13,177,14],[168,8,168,10],[168,13,168,14],[169,8,169,10],[169,13,169,14],[170,8,170,10],[170,13,170,14],[171,8,171,10],[171,13,171,14],[172,8,172,10],[172,13,172,14],[163,8,163,10],[163,13,163,14],[164,8,164,10],[164,13,164,14],[165,8,165,10],[165,13,165,14],[166,8,166,10],[166,13,166,14],[167,8,167,10],[167,13,167,14],[158,8,158,10],[158,13,158,14],[159,8,159,10],[159,13,159,14],[160,8,160,10],[160,13,160,14],[161,8,161,10],[161,13,161,14],[162,8,162,10],[162,13,162,14],[153,8,153,10],[153,13,153,14],[154,8,154,10],[154,13,154,14],[155,8,155,10],[155,13,155,14],[156,8,156,10],[156,13,156,14],[157,8,157,10],[157,13,157,14],[148,8,148,10],[148,13,148,14],[149,8,149,10],[149,13,149,14],[150,8,150,10],[150,13,150,14],[151,8,151,10],[151,13,151,14],[152,8,152,10],[152,13,152,14],[143,8,143,10],[143,13,143,14],[144,8,144,10],[144,13,144,14],[145,8,145,10],[145,13,145,14],[146,8,146,10],[146,13,146,14],[147,8,147,10],[147,13,147,14],[0,31,0,32],[0,33,0,34],[5,41,7,41],[5,42,7,42],[141,8,141,10],[141,13,141,14],[142,8,142,10],[142,13,142,14],[5,31,7,31],[5,32,7,32],[5,33,7,33],[5,34,7,34],[5,35,7,35],[5,38,7,38],[2,17,2,19],[2,21,2,22],[2,23,2,30],[0,25,0,30],[4,17,4,18],[4,23,4,24],[5,24,6,24],[5,30,6,30],[0,8,0,14],[0,15,0,16],[2,15,2,16],[4,13,4,14],[5,18,6,18],[5,25,6,27],[5,28,6,28],[5,29,6,29],[135,13,135,14],[136,13,136,14],[137,13,137,14],[123,13,123,14],[124,13,124,14],[125,13,125,14],[126,13,126,14],[127,13,127,14],[128,13,128,14],[117,13,117,14],[118,13,118,14],[119,13,119,14],[120,13,120,14],[121,13,121,14],[122,13,122,14],[111,13,111,14],[112,13,112,14],[113,13,113,14],[138,13,138,14],[139,13,139,14],[140,13,140,14],[129,13,129,14],[130,13,130,14],[131,13,131,14],[132,13,132,14],[133,13,133,14],[134,13,134,14],[114,13,114,14],[115,13,115,14],[116,13,116,14],[105,13,105,14],[106,13,106,14],[107,13,107,14],[108,13,108,14],[109,13,109,14],[110,13,110,14],[99,13,99,14],[100,13,100,14],[101,13,101,14],[102,13,102,14],[103,13,103,14],[104,13,104,14],[93,13,93,14],[94,13,94,14],[95,13,95,14],[96,13,96,14],[97,13,97,14],[98,13,98,14],[87,13,87,14],[88,13,88,14],[89,13,89,14],[90,13,90,14],[91,13,91,14],[92,13,92,14],[81,13,81,14],[82,13,82,14],[83,13,83,14],[84,13,84,14],[85,13,85,14],[86,13,86,14],[75,13,75,14],[76,13,76,14],[77,13,77,14],[78,13,78,14],[79,13,79,14],[80,13,80,14],[69,13,69,14],[70,13,70,14],[71,13,71,14],[72,13,72,14],[73,13,73,14],[74,13,74,14],[63,13,63,14],[64,13,64,14],[65,13,65,14],[66,13,66,14],[67,13,67,14],[68,13,68,14],[57,13,57,14],[58,13,58,14],[59,13,59,14],[60,13,60,14],[61,13,61,14],[62,13,62,14],[51,13,51,14],[52,13,52,14],[53,13,53,14],[54,13,54,14],[55,13,55,14],[56,13,56,14],[45,13,45,14],[46,13,46,14],[47,13,47,14],[48,13,48,14],[49,13,49,14],[50,13,50,14],[39,13,39,14],[40,13,40,14],[41,13,41,14],[42,13,42,14],[43,13,43,14],[44,13,44,14],[33,13,33,14],[34,13,34,14],[35,13,35,14],[36,13,36,14],[37,13,37,14],[38,13,38,14],[27,13,27,14],[28,13,28,14],[29,13,29,14],[30,13,30,14],[31,13,31,14],[32,13,32,14],[21,13,21,14],[22,13,22,14],[23,13,23,14],[24,13,24,14],[25,13,25,14],[26,13,26,14],[15,13,15,14],[16,13,16,14],[17,13,17,14],[18,13,18,14],[19,13,19,14],[20,13,20,14],[139,8,139,10],[140,8,140,10],[8,13,8,14],[9,13,9,14],[10,13,10,14],[11,13,11,14],[12,13,12,14],[13,13,13,14],[14,13,14,14],[133,8,133,10],[134,8,134,10],[135,8,135,10],[136,8,136,10],[137,8,137,10],[138,8,138,10],[127,8,127,10],[128,8,128,10],[129,8,129,10],[130,8,130,10],[131,8,131,10],[132,8,132,10],[121,8,121,10],[122,8,122,10],[123,8,123,10],[124,8,124,10],[125,8,125,10],[126,8,126,10],[115,8,115,10],[116,8,116,10],[117,8,117,10],[118,8,118,10],[119,8,119,10],[120,8,120,10],[109,8,109,10],[110,8,110,10],[111,8,111,10],[112,8,112,10],[113,8,113,10],[114,8,114,10],[103,8,103,10],[104,8,104,10],[105,8,105,10],[106,8,106,10],[107,8,107,10],[108,8,108,10],[97,8,97,10],[98,8,98,10],[99,8,99,10],[100,8,100,10],[101,8,101,10],[102,8,102,10],[91,8,91,10],[92,8,92,10],[93,8,93,10],[94,8,94,10],[95,8,95,10],[96,8,96,10],[85,8,85,10],[86,8,86,10],[87,8,87,10],[88,8,88,10],[89,8,89,10],[90,8,90,10],[79,8,79,10],[80,8,80,10],[81,8,81,10],[82,8,82,10],[83,8,83,10],[84,8,84,10],[73,8,73,10],[74,8,74,10],[75,8,75,10],[76,8,76,10],[77,8,77,10],[78,8,78,10],[67,8,67,10],[68,8,68,10],[69,8,69,10],[70,8,70,10],[71,8,71,10],[72,8,72,10],[61,8,61,10],[62,8,62,10],[63,8,63,10],[64,8,64,10],[65,8,65,10],[66,8,66,10],[55,8,55,10],[56,8,56,10],[57,8,57,10],[58,8,58,10],[59,8,59,10],[60,8,60,10],[49,8,49,10],[50,8,50,10],[51,8,51,10],[52,8,52,10],[53,8,53,10],[54,8,54,10],[43,8,43,10],[44,8,44,10],[45,8,45,10],[46,8,46,10],[47,8,47,10],[48,8,48,10],[37,8,37,10],[38,8,38,10],[39,8,39,10],[42,8,42,10],[31,8,31,10],[32,8,32,10],[33,8,33,10],[34,8,34,10],[35,8,35,10],[36,8,36,10],[26,8,26,10],[27,8,27,10],[28,8,28,10],[29,8,29,10],[30,8,30,10],[19,8,19,10],[20,8,20,10],[21,8,21,10],[22,8,22,10],[23,8,23,10],[13,8,13,10],[14,8,14,10],[15,8,15,10],[16,8,16,10],[17,8,17,10],[18,8,18,10],[7,8,7,10],[8,8,8,10],[9,8,9,10],[10,8,10,10],[11,8,11,10],[12,8,12,10],[5,7,6,7],[5,8,6,10],[4,7,4,11],[5,11,6,11],[7,12,7,15],[7,19,7,21],[7,25,7,27],[5,12,6,15],[5,16,6,16],[5,17,6,17],[5,19,6,21],[5,22,6,22],[5,23,6,23],[4,0,6,0],[4,1,6,1],[4,2,4,6],[5,2,6,2],[5,3,6,3],[5,4,6,4],[5,5,6,5],[5,6,6,6],[0,0,0,5],[0,6,0,7],[2,4,2,5]]}
["【一覧表】特定子ども子育て支援提供証明書兼領収証",null,null,null,null,null,"施設名称",null,null,null,null,null,null,null,null,"証明年月日",null,"令和",null,"年",null,"月",null,"日","代表者役職・名 ",null,null,null,null,null,null,"【市用】事業所番号："]
[]
[null,null,null,"特定子ども・子育て支援の内容","認可外保育施設",null,null,"提供時間帯",null,":",null,"～",null,":",null,"設置者（法人等）名称",null,null,null,null,null,"主たる事務所の所在地",null,null,null,null,null,null,null,null,null,null,"↓サービス種類一覧　預かり保育：11、認可外保育：12、一時預かり：13、病児保育：14、ファミサポ：15、"]
[]
["NO","学年(クラス年齢)","認定子ども",null,null,null,null,"認定保護者",null,null,null,null,"令和",8,null,"年",4,"月分",null,"令和",{"$f":"IF(Q5=12,N5+1,N5)","v":8},"年",{"$f":"IF(Q5=12,1,Q5+1)","v":5},"月分",null,"令和",{"$f":"IF(W5=12,U5+1,U5)","v":8},"年",{"$f":"IF(W5=12,1,W5+1)","v":6},"月分",null,"【市記入欄】取込用項目",null,null,null,null,null,null,null,null,null,null,null,null,null,null,null,null,"取込用項目移送表"]
[null,null,"宛名コード","児童氏名","フリガナ","生年月日\nYYYY/MM/DD\n形式","認定\n30条の4","保護者氏名","フリガナ",null,null,"認定\n子ども\nとの続柄","提供した日",null,null,null,"【月途中】\n①認定開始\n②認定終了\n③転入\n④転出","利用料(保育料)の領収金額\n無償化対象","利用料(保育料)以外の領収金額\n無償化対象外","提供した日",null,null,"【月途中】\n①認定開始\n②認定終了\n③転入\n④転出","利用料(保育料)の領収金額\n無償化対象","利用料(保育料)以外の領収金額\n無償化対象外","提供した日",null,null,"【月途中】\n①認定開始\n②認定終了\n③転入\n④転出","利用料(保育料)の領収金額\n無償化対象","利用料(保育料)以外の領収金額\n無償化対象外","宛名コード","サービス\n種類","支払区分\n（1:償還）","支払年月","給付額\n①","給付額\n②","給付額\n③","預かり保育利用日数①","預かり保育利用日数②","預かり保育利用日数③","月途中開始日①","月途中終了日①","月途中開始日②","月途中終了日②","月途中開始日③","月途中終了日③",null,"【市用】提供証明等（償還）","→","GH0D610C.CSV"]
[null,null,null,null,null,null,null,null,null,null,null,null,null,null,null,null,null,null,null,null,null,null,null,null,null,null,null,null,null,null,null,null,null,null,null,null,null,null,null,null,null,null,null,null,null,null,null,null,"宛名コード（AF列）","→","宛名コード"]
["(自動採番)","(選択)","(市使用欄)","(記入)","(記入)","(記入)","(選択)","(記入)","(記入)",null,null,"(記入)","(記入)",null,null,null,"(選択)","(記入)　　(円)","(記入)　　(円)","(記入)",null,null,"(選択)","(記入)　　(円)","(記入)　　(円)","(記入)",null,null,"(選択)","(記入)　　(円)","(記入)　　(円)",null,null,null,null,null,null,null,null,null,null,null,null,null,null,null,null,null,"利用年月（N5＆Q5、U5＆W5、AA5＆AC5）","→","利用年月（3レコード作成）"]
[{"$f":"IF(D9=\"\",\"\",ROW()-8)","v":""},null,null,null,null,null,null,null,null,null,null,null,null,"～",null,null,"非該当",null,null,null,"～",null,"非該当",null,null,null,"～",null,"非該当",null,null,null,null,null,null,null,null,null,null,null,null,null,null,null,null,null,null,null,"サービス種類（AG列）","→","施設利用サービス種類"]
[{"$f":"IF(A9=\"\",\"\",IF(D10=\"\",\"\",ROW()-8))","v":""},null,null,null,null,null,null,null,null,null,null,null,null,"～",null,null,"非該当",null,null,null,"～",null,"非該当",null,null,null,"～",null,"非該当",null,null,null,null,null,null,null,null,null,null,null,null,null,null,null,null,null,null,null,"事業所番号（AH1）","→","事業所番号"]
["",null,null,null,null,null,null,null,null,null,null,null,null,"～",null,null,"非該当",null,null,null,"～",null,"非該当",null,null,null,"～",null,"非該当",null,null,null,null,null,null,null,null,null,null,null,null,null,null,null,null,null,null,null,"支払区分（AH列）","→","支払区分"]
["",null,null,null,null,null,null,null,null,null,null,null,null,"～",null,null,"非該当",null,null,null,"～",null,"非該当",null,null,null,"～",null,"非該当",null,null,null,null,null,null,null,null,null,null,null,null,null,null,null,null,null,null,null,"支払年月（AI列）","→","支払年月"]
["",null,null,null,null,null,null,null,null,null,null,null,null,"～",null,null,"非該当",null,null,null,"～",null,"非該当",null,null,null,"～",null,"非該当",null,null,null,null,null,null,null,null,null,null,null,null,null,null,null,null,null,null,null,"利用金額（R列、X列、AD列）","→","利用金額（利用年月に合わせ3レコード作成）"]
["",null,null,null,null,null,null,null,null,null,null,null,null,"～",null,null,"非該当",null,null,null,"～",null,"非該当",null,null,null,"～",null,"非該当",null,null,null,null,null,null,null,null,null,null,null,null,null,null,null,null,null,null,null,"給付額（AJ列、AK列、AL列）","→","給付額（利用年月に合わせ3レコード作成）","←空白の場合、利用金額と同額"]
["",null,null,null,null,null,null,null,null,null,null,null,null,"～",null,null,"非該当",null,null,null,"～",null,"非該当",null,null,null,"～",null,"非該当",null,null,null,null,null,null,null,null,null,null,null,null,null,null,null,null,null,null,null,"預かり保育利用日数（AM列、AN列、AO列）","→","預かり保育利用日数（利用年月に合わせ3レコード作成）","←空白の場合、0"]
["",null,null,null,null,null,null,null,null,null,null,null,null,"～",null,null,"非該当",null,null,null,"～",null,"非該当",null,null,null,"～",null,"非該当",null,null,null,null,null,null,null,null,null,null,null,null,null,null,null,null,null,null,null,"月途中開始日（AP列、AR列、AT列）","→","月途中開始日（利用年月に合わせ3レコード作成）","←空白の場合、0"]
["",null,null,null,null,null,null,null,null,null,null,null,null,"～",null,null,"非該当",null,null,null,"～",null,"非該当",null,null,null,"～",null,"非該当",null,null,null,null,null,null,null,null,null,null,null,null,null,null,null,null,null,null,null,"月途中終了日（AQ列、AS列、AU列）","→","月途中終了日（利用年月に合わせ3レコード作成）","←空白の場合、0"]
["",null,null,null,null,null,null,null,null,null,null,null,null,"～",null,null,"非該当",null,null,null,"～",null,"非該当",null,null,null,"～",null,"非該当",null,null,null,null,null,null,null,null,null,null,null,null,null,null,null,null,null,null,null,null,null,"CST項目についてはすべて空欄で作成"]
["",null,null,null,null,null,null,null,null,null,null,null,null,"～",null,null,"非該当",null,null,null,"～",null,"非該当",null,null,null,"～",null,"非該当"]
["",null,null,null,null,null,null,null,null,null,null,null,null,"～",null,null,"非該当",null,null,null,"～",null,"非該当",null,null,null,"～",null,"非該当"]
["",null,null,null,null,null,null,null,null,null,null,null,null,"～",null,null,"非該当",null,null,null,"～",null,"非該当",null,null,null,"～",null,"非該当"]
["",null,null,null,null,null,null,null,null,null,null,null,null,"～",null,null,"非該当",null,null,null,"～",null,"非該当",null,null,null,"～",null,"非該当"]
["",null,null,null,null,null,null,null,null,null,null,null,null,"～",null,null,"非該当",null,null,null,"～",null,"非該当",null,null,null,"～",null,"非該当"]
["",null,null,null,null,null,null,null,null,null,null,null,null,"～",null,null,"非該当",null,null,null,"～",null,"非該当",null,null,null,"～",null,"非該当"]
[{"$f":"IF(A24=\"\",\"\",IF(D25=\"\",\"\",ROW()-8))","v":""},null,null,null,null,null,null,null,null,null,null,null,null,"～",null,null,"非該当",null,null,null,"～",null,"非該当",null,null,null,"～",null,"非該当"]
["",null,null,null,null,null,null,null,null,null,null,null,null,"～",null,null,"非該当",null,null,null,"～",null,"非該当",null,null,null,"～",null,"非該当"]
["",null,null,null,null,null,null,null,null,null,null,null,null,"～",null,null,"非該当",null,null,null,"～",null,"非該当",null,null,null,"～",null,"非該当"]
["",null,null,null,null,null,null,null,null,null,null,null,null,"～",null,null,"非該当",null,null,null,"～",null,"非該当",null,null,null,"～",null,"非該当"]
["",null,null,null,null,null,null,null,null,null,null,null,null,"～",null,null,"非該当",null,null,null,"～",null,"非該当",null,null,null,"～",null,"非該当"]
["",null,null,null,null,null,null,null,null,null,null,null,null,"～",null,null,"非該当",null,null,null,"～",null,"非該当",null,null,null,"～",null,"非該当"]
["",null,null,null,null,null,null,null,null,null,null,null,null,"～",null,null,"非該当",null,null,null,"～",null,"非該当",null,null,null,"～",null,"非該当"]
["",null,null,null,null,null,null,null,null,null,null,null,null,"～",null,null,"非該当",null,null,null,"～",null,"非該当",null,null,null,"～",null,"非該当"]
["",null,null,null,null,null,null,null,null,null,null,null,null,"～",null,null,"非該当",null,null,null,"～",null,"非該当",null,null,null,"～",null,"非該当"]
["",null,null,null,null,null,null,null,null,null,null,null,null,"～",null,null,"非該当",null,null,null,"～",null,"非該当",null,null,null,"～",null,"非該当"]
["",null,null,null,null,null,null,null,null,null,null,null,null,"～",null,null,"非該当",null,null,null,"～",null,"非該当",null,null,null,"～",null,"非該当"]
["",null,null,null,null,null,null,null,null,null,null,null,null,"～",null,null,"非該当",null,null,null,"～",null,"非該当",null,null,null,"～",null,"非該当"]
["",null,null,null,null,null,null,null,null,null,null,null,null,"～",null,null,"非該当",null,null,null,"～",null,"非該当",null,null,null,"～",null,"非該当"]
["",null,null,null,null,null,null,null,null,null,null,null,null,"～",null,null,"非該当",null,null,null,"～",null,"非該当",null,null,null,"～",null,"非該当"]
["",null,null,null,null,null,null,null,null,null,null,null,null,"～",null,null,"非該当",null,null,null,"～",null,"非該当",null,null,null,"～",null,"非該当"]
["",null,null,null,null,null,null,null,null,null,null,null,null,"～",null,null,"非該当",null,null,null,"～",null,"非該当",null,null,null,"～",null,"非該当"]
["",null,null,null,null,null,null,null,null,null,null,null,null,"～",null,null,"非該当",null,null,null,"～",null,"非該当",null,null,null,"～",null,"非該当"]
["",null,null,null,null,null,null,null,null,null,null,null,null,"～",null,null,"非該当",null,null,null,"～",null,"非該当",null,null,null,"～",null,"非該当"]
["",null,null,null,null,null,null,null,null,null,null,null,null,"～",null,null,"非該当",null,null,null,"～",null,"非該当",null,null,null,"～",null,"非該当"]
["",null,null,null,null,null,null,null,null,null,null,null,null,"～",null,null,"非該当",null,null,null,"～",null,"非該当",null,null,null,"～",null,"非該当"]
["",null,null,null,null,null,null,null,null,null,null,null,null,"～",null,null,"非該当",null,null,null,"～",null,"非該当",null,null,null,"～",null,"非該当"]
["",null,null,null,null,null,null,null,null,null,null,null,null,"～",null,null,"非該当",null,null,null,"～",null,"非該当",null,null,null,"～",null,"非該当"]
["",null,null,null,null,null,null,null,null,null,null,null,null,"～",null,null,"非該当",null,null,null,"～",null,"非該当",null,null,null,"～",null,"非該当"]
["",null,null,null,null,null,null,null,null,null,null,null,null,"～",null,null,"非該当",null,null,null,"～",null,"非該当",null,null,null,"～",null,"非該当"]
["",null,null,null,null,null,null,null,null,null,null,null,null,"～",null,null,"非該当",null,null,null,"～",null,"非該当",null,null,null,"～",null,"非該当"]
["",null,null,null,null,null,null,null,null,null,null,null,null,"～",null,null,"非該当",null,null,null,"～",null,"非該当",null,null,null,"～",null,"非該当"]
[{"$f":"IF(A50=\"\",\"\",IF(D51=\"\",\"\",ROW()-8))","v":""},null,null,null,null,null,null,null,null,null,null,null,null,"～",null,null,"非該当",null,null,null,"～",null,"非該当",null,null,null,"～",null,"非該当"]
["",null,null,null,null,null,null,null,null,null,null,null,null,"～",null,null,"非該当",null,null,null,"～",null,"非該当",null,null,null,"～",null,"非該当"]
["",null,null,null,null,null,null,null,null,null,null,null,null,"～",null,null,"非該当",null,null,null,"～",null,"非該当",null,null,null,"～",null,"非該当"]
["",null,null,null,null,null,null,null,null,null,null,null,null,"～",null,null,"非該当",null,null,null,"～",null,"非該当",null,null,null,"～",null,"非該当"]
["",null,null,null,null,null,null,null,null,null,null,null,null,"～",null,null,"非該当",null,null,null,"～",null,"非該当",null,null,null,"～",null,"非該当"]
["",null,null,null,null,null,null,null,null,null,null,null,null,"～",null,null,"非該当",null,null,null,"～",null,"非該当",null,null,null,"～",null,"非該当"]
["",null,null,null,null,null,null,null,null,null,null,null,null,"～",null,null,"非該当",null,null,null,"～",null,"非該当",null,null,null,"～",null,"非該当"]
["",null,null,null,null,null,null,null,null,null,null,null,null,"～",null,null,"非該当",null,null,null,"～",null,"非該当",null,null,null,"～",null,"非該当"]
["",null,null,null,null,null,null,null,null,null,null,null,null,"～",null,null,"非該当",null,null,null,"～",null,"非該当",null,null,null,"～",null,"非該当"]
["",null,null,null,null,null,null,null,null,null,null,null,null,"～",null,null,"非該当",null,null,null,"～",null,"非該当",null,null,null,"～",null,"非該当"]
["",null,null,null,null,null,null,null,null,null,null,null,null,"～",null,null,"非該当",null,null,null,"～",null,"非該当",null,null,null,"～",null,"非該当"]
["",null,null,null,null,null,null,null,null,null,null,null,null,"～",null,null,"非該当",null,null,null,"～",null,"非該当",null,null,null,"～",null,"非該当"]
["",null,null,null,null,null,null,null,null,null,null,null,null,"～",null,null,"非該当",null,null,null,"～",null,"非該当",null,null,null,"～",null,"非該当"]
["",null,null,null,null,null,null,null,null,null,null,null,null,"～",null,null,"非該当",null,null,null,"～",null,"非該当",null,null,null,"～",null,"非該当"]
["",null,null,null,null,null,null,null,null,null,null,null,null,"～",null,null,"非該当",null,null,null,"～",null,"非該当",null,null,null,"～",null,"非該当"]
["",null,null,null,null,null,null,null,null,null,null,null,null,"～",null,null,"非該当",null,null,null,"～",null,"非該当",null,null,null,"～",null,"非該当"]
["",null,null,null,null,null,null,null,null,null,null,null,null,"～",null,null,"非該当",null,null,null,"～",null,"非該当",null,null,null,"～",null,"非該当"]
["",null,null,null,null,null,null,null,null,null,null,null,null,"～",null,null,"非該当",null,null,null,"～",null,"非該当",null,null,null,"～",null,"非該当"]
["",null,null,null,null,null,null,null,null,null,null,null,null,"～",null,null,"非該当",null,null,null,"～",null,"非該当",null,null,null,"～",null,"非該当"]
["",null,null,null,null,null,null,null,null,null,null,null,null,"～",null,null,"非該当",null,null,null,"～",null,"非該当",null,null,null,"～",null,"非該当"]
["",null,null,null,null,null,null,null,null,null,null,null,null,"～",null,null,"非該当",null,null,null,"～",null,"非該当",null,null,null,"～",null,"非該当"]
["",null,null,null,null,null,null,null,null,null,null,null,null,"～",null,null,"非該当",null,null,null,"～",null,"非該当",null,null,null,"～",null,"非該当"]
["",null,null,null,null,null,null,null,null,null,null,null,null,"～",null,null,"非該当",null,null,null,"～",null,"非該当",null,null,null,"～",null,"非該当"]
["",null,null,null,null,null,null,null,null,null,null,null,null,"～",null,null,"非該当",null,null,null,"～",null,"非該当",null,null,null,"～",null,"非該当"]
[{"$f":"IF(A74=\"\",\"\",IF(D75=\"\",\"\",ROW()-8))","v":""},null,null,null,null,null,null,null,null,null,null,null,null,"～",null,null,"非該当",null,null,null,"～",null,"非該当",null,null,null,"～",null,"非該当"]
["",null,null,null,null,null,null,null,null,null,null,null,null,"～",null,null,"非該当",null,null,null,"～",null,"非該当",null,null,null,"～",null,"非該当"]
["",null,null,null,null,null,null,null,null,null,null,null,null,"～",null,null,"非該当",null,null,null,"～",null,"非該当",null,null,null,"～",null,"非該当"]
["",null,null,null,null,null,null,null,null,null,null,null,null,"～",null,null,"非該当",null,null,null,"～",null,"非該当",null,null,null,"～",null,"非該当"]
["",null,null,null,null,null,null,null,null,null,null,null,null,"～",null,null,"非該当",null,null,null,"～",null,"非該当",null,null,null,"～",null,"非該当"]
["",null,null,null,null,null,null,null,null,null,null,null,null,"～",null,null,"非該当",null,null,null,"～",null,"非該当",null,null,null,"～",null,"非該当"]
["",null,null,null,null,null,null,null,null,null,null,null,null,"～",null,null,"非該当",null,null,null,"～",null,"非該当",null,null,null,"～",null,"非該当"]
["",null,null,null,null,null,null,null,null,null,null,null,null,"～",null,null,"非該当",null,null,null,"～",null,"非該当",null,null,null,"～",null,"非該当"]
["",null,null,null,null,null,null,null,null,null,null,null,null,"～",null,null,"非該当",null,null,null,"～",null,"非該当",null,null,null,"～",null,"非該当"]
["",null,null,null,null,null,null,null,null,null,null,null,null,"～",null,null,"非該当",null,null,null,"～",null,"非該当",null,null,null,"～",null,"非該当"]
["",null,null,null,null,null,null,null,null,null,null,null,null,"～",null,null,"非該当",null,null,null,"～",null,"非該当",null,null,null,"～",null,"非該当"]
["",null,null,null,null,null,null,null,null,null,null,null,null,"～",null,null,"非該当",null,null,null,"～",null,"非該当",null,null,null,"～",null,"非該当"]
["",null,null,null,null,null,null,null,null,null,null,null,null,"～",null,null,"非該当",null,null,null,"～",null,"非該当",null,null,null,"～",null,"非該当"]
["",null,null,null,null,null,null,null,null,null,null,null,null,"～",null,null,"非該当",null,null,null,"～",null,"非該当",null,null,null,"～",null,"非該当"]
["",null,null,null,null,null,null,null,null,null,null,null,null,"～",null,null,"非該当",null,null,null,"～",null,"非該当",null,null,null,"～",null,"非該当"]
["",null,null,null,null,null,null,null,null,null,null,null,null,"～",null,null,"非該当",null,null,null,"～",null,"非該当",null,null,null,"～",null,"非該当"]
["",null,null,null,null,null,null,null,null,null,null,null,null,"～",null,null,"非該当",null,null,null,"～",null,"非該当",null,null,null,"～",null,"非該当"]
["",null,null,null,null,null,null,null,null,null,null,null,null,"～",null,null,"非該当",null,null,null,"～",null,"非該当",null,null,null,"～",null,"非該当"]
["",null,null,null,null,null,null,null,null,null,null,null,null,"～",null,null,"非該当",null,null,null,"～",null,"非該当",null,null,null,"～",null,"非該当"]
["",null,null,null,null,null,null,null,null,null,null,null,null,"～",null,null,"非該当",null,null,null,"～",null,"非該当",null,null,null,"～",null,"非該当"]
["",null,null,null,null,null,null,null,null,null,null,null,null,"～",null,null,"非該当",null,null,null,"～",null,"非該当",null,null,null,"～",null,"非該当"]
["",null,null,null,null,null,null,null,null,null,null,null,null,"～",null,null,"非該当",null,null,null,"～",null,"非該当",null,null,null,"～",null,"非該当"]
["",null,null,null,null,null,null,null,null,null,null,null,null,"～",null,null,"非該当",null,null,null,"～",null,"非該当",null,null,null,"～",null,"非該当"]
["",null,null,null,null,null,null,null,null,null,null,null,null,"～",null,null,"非該当",null,null,null,"～",null,"非該当",null,null,null,"～",null,"非該当"]
["",null,null,null,null,null,null,null,null,null,null,null,null,"～",null,null,"非該当",null,null,null,"～",null,"非該当",null,null,null,"～",null,"非該当"]
["",null,null,null,null,null,null,null,null,null,null,null,null,"～",null,null,"非該当",null,null,null,"～",null,"非該当",null,null,null,"～",null,"非該当"]
["",null,null,null,null,null,null,null,null,null,null,null,null,"～",null,null,"非該当",null,null,null,"～",null,"非該当",null,null,null,"～",null,"非該当"]
["",null,null,null,null,null,null,null,null,null,null,null,null,"～",null,null,"非該当",null,null,null,"～",null,"非該当",null,null,null,"～",null,"非該当"]
["",null,null,null,null,null,null,null,null,null,null,null,null,"～",null,null,"非該当",null,null,null,"～",null,"非該当",null,null,null,"～",null,"非該当"]
["",null,null,null,null,null,null,null,null,null,null,null,null,"～",null,null,"非該当",null,null,null,"～",null,"非該当",null,null,null,"～",null,"非該当"]
["",null,null,null,null,null,null,null,null,null,null,null,null,"～",null,null,"非該当",null,null,null,"～",null,"非該当",null,null,null,"～",null,"非該当"]
["",null,null,null,null,null,null,null,null,null,null,null,null,"～",null,null,"非該当",null,null,null,"～",null,"非該当",null,null,null,"～",null,"非該当"]
["",null,null,null,null,null,null,null,null,null,null,null,null,"～",null,null,"非該当",null,null,null,"～",null,"非該当",null,null,null,"～",null,"非該当"]
["",null,null,null,null,null,null,null,null,null,null,null,null,"～",null,null,"非該当",null,null,null,"～",null,"非該当",null,null,null,"～",null,"非該当"]
["",null,null,null,null,null,null,null,null,null,null,null,null,"～",null,null,"非該当",null,null,null,"～",null,"非該当",null,null,null,"～",null,"非該当"]
["",null,null,null,null,null,null,null,null,null,null,null,null,"～",null,null,"非該当",null,null,null,"～",null,"非該当",null,null,null,"～",null,"非該当"]
["",null,null,null,null,null,null,null,null,null,null,null,null,"～",null,null,"非該当",null,null,null,"～",null,"非該当",null,null,null,"～",null,"非該当"]
["",null,null,null,null,null,null,null,null,null,null,null,null,"～",null,null,"非該当",null,null,null,"～",null,"非該当",null,null,null,"～",null,"非該当"]
["",null,null,null,null,null,null,null,null,null,null,null,null,"～",null,null,"非該当",null,null,null,"～",null,"非該当",null,null,null,"～",null,"非該当"]
["",null,null,null,null,null,null,null,null,null,null,null,null,"～",null,null,"非該当",null,null,null,"～",null,"非該当",null,null,null,"～",null,"非該当"]
["",null,null,null,null,null,null,null,null,null,null,null,null,"～",null,null,"非該当",null,null,null,"～",null,"非該当",null,null,null,"～",null,"非該当"]
["",null,null,null,null,null,null,null,null,null,null,null,null,"～",null,null,"非該当",null,null,null,"～",null,"非該当",null,null,null,"～",null,"非該当"]
["",null,null,null,null,null,null,null,null,null,null,null,null,"～",null,null,"非該当",null,null,null,"～",null,"非該当",null,null,null,"～",null,"非該当"]
["",null,null,null,null,null,null,null,null,null,null,null,null,"～",null,null,"非該当",null,null,null,"～",null,"非該当",null,null,null,"～",null,"非該当"]
["",null,null,null,null,null,null,null,null,null,null,null,null,"～",null,null,"非該当",null,null,null,"～",null,"非該当",null,null,null,"～",null,"非該当"]
["",null,null,null,null,null,null,null,null,null,null,null,null,"～",null,null,"非該当",null,null,null,"～",null,"非該当",null,null,null,"～",null,"非該当"]
["",null,null,null,null,null,null,null,null,null,null,null,null,"～",null,null,"非該当",null,null,null,"～",null,"非該当",null,null,null,"～",null,"非該当"]
["",null,null,null,null,null,null,null,null,null,null,null,null,"～",null,null,"非該当",null,null,null,"～",null,"非該当",null,null,null,"～",null,"非該当"]
["",null,null,null,null,null,null,null,null,null,null,null,null,"～",null,null,"非該当",null,null,null,"～",null,"非該当",null,null,null,"～",null,"非該当"]
["",null,null,null,null,null,null,null,null,null,null,null,null,"～",null,null,"非該当",null,null,null,"～",null,"非該当",null,null,null,"～",null,"非該当"]
["",null,null,null,null,null,null,null,null,null,null,null,null,"～",null,null,"非該当",null,null,null,"～",null,"非該当",null,null,null,"～",null,"非該当"]
["",null,null,null,null,null,null,null,null,null,null,null,null,"～",null,null,"非該当",null,null,null,"～",null,"非該当",null,null,null,"～",null,"非該当"]
["",null,null,null,null,null,null,null,null,null,null,null,null,"～",null,null,"非該当",null,null,null,"～",null,"非該当",null,null,null,"～",null,"非該当"]
["",null,null,null,null,null,null,null,null,null,null,null,null,"～",null,null,"非該当",null,null,null,"～",null,"非該当",null,null,null,"～",null,"非該当"]
["",null,null,null,null,null,null,null,null,null,null,null,null,"～",null,null,"非該当",null,null,null,"～",null,"非該当",null,null,null,"～",null,"非該当"]
["",null,null,null,null,null,null,null,null,null,null,null,null,"～",null,null,"非該当",null,null,null,"～",null,"非該当",null,null,null,"～",null,"非該当"]
["",null,null,null,null,null,null,null,null,null,null,null,null,"～",null,null,"非該当",null,null,null,"～",null,"非該当",null,null,null,"～",null,"非該当"]
["",null,null,null,null,null,null,null,null,null,null,null,null,"～",null,null,"非該当",null,null,null,"～",null,"非該当",null,null,null,"～",null,"非該当"]
["",null,null,null,null,null,null,null,null,null,null,null,null,"～",null,null,"非該当",null,null,null,"～",null,"非該当",null,null,null,"～",null,"非該当"]
["",null,null,null,null,null,null,null,null,null,null,null,null,"～",null,null,"非該当",null,null,null,"～",null,"非該当",null,null,null,"～",null,"非該当"]
["",null,null,null,null,null,null,null,null,null,null,null,null,"～",null,null,"非該当",null,null,null,"～",null,"非該当",null,null,null,"～",null,"非該当"]
["",null,null,null,null,null,null,null,null,null,null,null,null,"～",null,null,"非該当",null,null,null,"～",null,"非該当",null,null,null,"～",null,"非該当"]
["",null,null,null,null,null,null,null,null,null,null,null,null,"～",null,null,"非該当",null,null,null,"～",null,"非該当",null,null,null,"～",null,"非該当"]
["",null,null,null,null,null,null,null,null,null,null,null,null,"～",null,null,"非該当",null,null,null,"～",null,"非該当",null,null,null,"～",null,"非該当"]
[{"$f":"IF(A138=\"\",\"\",IF(D139=\"\",\"\",ROW()-8))","v":""},null,null,null,null,null,null,null,null,null,null,null,null,"～",null,null,"非該当",null,null,null,"～",null,"非該当",null,null,null,"～",null,"非該当"]
["",null,null,null,null,null,null,null,null,null,null,null,null,"～",null,null,"非該当",null,null,null,"～",null,"非該当",null,null,null,"～",null,"非該当"]
["",null,null,null,null,null,null,null,null,null,null,null,null,"～",null,null,"非該当",null,null,null,"～",null,"非該当",null,null,null,"～",null,"非該当"]
["",null,null,null,null,null,null,null,null,null,null,null,null,"～",null,null,"非該当",null,null,null,"～",null,"非該当",null,null,null,"～",null,"非該当"]
["",null,null,null,null,null,null,null,null,null,null,null,null,"～",null,null,"非該当",null,null,null,"～",null,"非該当",null,null,null,"～",null,"非該当"]
["",null,null,null,null,null,null,null,null,null,null,null,null,"～",null,null,"非該当",null,null,null,"～",null,"非該当",null,null,null,"～",null,"非該当"]
["",null,null,null,null,null,null,null,null,null,null,null,null,"～",null,null,"非該当",null,null,null,"～",null,"非該当",null,null,null,"～",null,"非該当"]
["",null,null,null,null,null,null,null,null,null,null,null,null,"～",null,null,"非該当",null,null,null,"～",null,"非該当",null,null,null,"～",null,"非該当"]
["",null,null,null,null,null,null,null,null,null,null,null,null,"～",null,null,"非該当",null,null,null,"～",null,"非該当",null,null,null,"～",null,"非該当"]
["",null,null,null,null,null,null,null,null,null,null,null,null,"～",null,null,"非該当",null,null,null,"～",null,"非該当",null,null,null,"～",null,"非該当"]
["",null,null,null,null,null,null,null,null,null,null,null,null,"～",null,null,"非該当",null,null,null,"～",null,"非該当",null,null,null,"～",null,"非該当"]
["",null,null,null,null,null,null,null,null,null,null,null,null,"～",null,null,"非該当",null,null,null,"～",null,"非該当",null,null,null,"～",null,"非該当"]
["",null,null,null,null,null,null,null,null,null,null,null,null,"～",null,null,"非該当",null,null,null,"～",null,"非該当",null,null,null,"～",null,"非該当"]
["",null,null,null,null,null,null,null,null,null,null,null,null,"～",null,null,"非該当",null,null,null,"～",null,"非該当",null,null,null,"～",null,"非該当"]
["",null,null,null,null,null,null,null,null,null,null,null,null,"～",null,null,"非該当",null,null,null,"～",null,"非該当",null,null,null,"～",null,"非該当"]
["",null,null,null,null,null,null,null,null,null,null,null,null,"～",null,null,"非該当",null,null,null,"～",null,"非該当",null,null,null,"～",null,"非該当"]
["",null,null,null,null,null,null,null,null,null,null,null,null,"～",null,null,"非該当",null,null,null,"～",null,"非該当",null,null,null,"～",null,"非該当"]
["",null,null,null,null,null,null,null,null,null,null,null,null,"～",null,null,"非該当",null,null,null,"～",null,"非該当",null,null,null,"～",null,"非該当"]
["",null,null,null,null,null,null,null,null,null,null,null,null,"～",null,null,"非該当",null,null,null,"～",null,"非該当",null,null,null,"～",null,"非該当"]
["",null,null,null,null,null,null,null,null,null,null,null,null,"～",null,null,"非該当",null,null,null,"～",null,"非該当",null,null,null,"～",null,"非該当"]
["",null,null,null,null,null,null,null,null,null,null,null,null,"～",null,null,"非該当",null,null,null,"～",null,"非該当",null,null,null,"～",null,"非該当"]
["",null,null,null,null,null,null,null,null,null,null,null,null,"～",null,null,"非該当",null,null,null,"～",null,"非該当",null,null,null,"～",null,"非該当"]
["",null,null,null,null,null,null,null,null,null,null,null,null,"～",null,null,"非該当",null,null,null,"～",null,"非該当",null,null,null,"～",null,"非該当"]
["",null,null,null,null,null,null,null,null,null,null,null,null,"～",null,null,"非該当",null,null,null,"～",null,"非該当",null,null,null,"～",null,"非該当"]
["",null,null,null,null,null,null,null,null,null,null,null,null,"～",null,null,"非該当",null,null,null,"～",null,"非該当",null,null,null,"～",null,"非該当"]
["",null,null,null,null,null,null,null,null,null,null,null,null,"～",null,null,"非該当",null,null,null,"～",null,"非該当",null,null,null,"～",null,"非該当"]
["",null,null,null,null,null,null,null,null,null,null,null,null,"～",null,null,"非該当",null,null,null,"～",null,"非該当",null,null,null,"～",null,"非該当"]
["",null,null,null,null,null,null,null,null,null,null,null,null,"～",null,null,"非該当",null,null,null,"～",null,"非該当",null,null,null,"～",null,"非該当"]
["",null,null,null,null,null,null,null,null,null,null,null,null,"～",null,null,"非該当",null,null,null,"～",null,"非該当",null,null,null,"～",null,"非該当"]
["",null,null,null,null,null,null,null,null,null,null,null,null,"～",null,null,"非該当",null,null,null,"～",null,"非該当",null,null,null,"～",null,"非該当"]
["",null,null,null,null,null,null,null,null,null,null,null,null,"～",null,null,"非該当",null,null,null,"～",null,"非該当",null,null,null,"～",null,"非該当"]
["",null,null,null,null,null,null,null,null,null,null,null,null,"～",null,null,"非該当",null,null,null,"～",null,"非該当",null,null,null,"～",null,"非該当"]
["",null,null,null,null,null,null,null,null,null,null,null,null,"～",null,null,"非該当",null,null,null,"～",null,"非該当",null,null,null,"～",null,"非該当"]
["",null,null,null,null,null,null,null,null,null,null,null,null,"～",null,null,"非該当",null,null,null,"～",null,"非該当",null,null,null,"～",null,"非該当"]
["",null,null,null,null,null,null,null,null,null,null,null,null,"～",null,null,"非該当",null,null,null,"～",null,"非該当",null,null,null,"～",null,"非該当"]
["",null,null,null,null,null,null,null,null,null,null,null,null,"～",null,null,"非該当",null,null,null,"～",null,"非該当",null,null,null,"～",null,"非該当"]
["",null,null,null,null,null,null,null,null,null,null,null,null,"～",null,null,"非該当",null,null,null,"～",null,"非該当",null,null,null,"～",null,"非該当"]
["",null,null,null,null,null,null,null,null,null,null,null,null,"～",null,null,"非該当",null,null,null,"～",null,"非該当",null,null,null,"～",null,"非該当"]
["",null,null,null,null,null,null,null,null,null,null,null,null,"～",null,null,"非該当",null,null,null,"～",null,"非該当",null,null,null,"～",null,"非該当"]
["",null,null,null,null,null,null,null,null,null,null,null,null,"～",null,null,"非該当",null,null,null,"～",null,"非該当",null,null,null,"～",null,"非該当"]
["",null,null,null,null,null,null,null,null,null,null,null,null,"～",null,null,"非該当",null,null,null,"～",null,"非該当",null,null,null,"～",null,"非該当"]
["",null,null,null,null,null,null,null,null,null,null,null,null,"～",null,null,"非該当",null,null,null,"～",null,"非該当",null,null,null,"～",null,"非該当"]
["",null,null,null,null,null,null,null,null,null,null,null,null,"～",null,null,"非該当",null,null,null,"～",null,"非該当",null,null,null,"～",null,"非該当"]
["",null,null,null,null,null,null,null,null,null,null,null,null,"～",null,null,"非該当",null,null,null,"～",null,"非該当",null,null,null,"～",null,"非該当"]
["",null,null,null,null,null,null,null,null,null,null,null,null,"～",null,null,"非該当",null,null,null,"～",null,"非該当",null,null,null,"～",null,"非該当"]
["",null,null,null,null,null,null,null,null,null,null,null,null,"～",null,null,"非該当",null,null,null,"～",null,"非該当",null,null,null,"～",null,"非該当"]
["",null,null,null,null,null,null,null,null,null,null,null,null,"～",null,null,"非該当",null,null,null,"～",null,"非該当",null,null,null,"～",null,"非該当"]
["",null,null,null,null,null,null,null,null,null,null,null,null,"～",null,null,"非該当",null,null,null,"～",null,"非該当",null,null,null,"～",null,"非該当"]
["",null,null,null,null,null,null,null,null,null,null,null,null,"～",null,null,"非該当",null,null,null,"～",null,"非該当",null,null,null,"～",null,"非該当"]
["",null,null,null,null,null,null,null,null,null,null,null,null,"～",null,null,"非該当",null,null,null,"～",null,"非該当",null,null,null,"～",null,"非該当"]
["",null,null,null,null,null,null,null,null,null,null,null,null,"～",null,null,"非該当",null,null,null,"～",null,"非該当",null,null,null,"～",null,"非該当"]
["",null,null,null,null,null,null,null,null,null,null,null,null,"～",null,null,"非該当",null,null,null,"～",null,"非該当",null,null,null,"～",null,"非該当"]
["",null,null,null,null,null,null,null,null,null,null,null,null,"～",null,null,"非該当",null,null,null,"～",null,"非該当",null,null,null,"～",null,"非該当"]
["",null,null,null,null,null,null,null,null,null,null,null,null,"～",null,null,"非該当",null,null,null,"～",null,"非該当",null,null,null,"～",null,"非該当"]
["",null,null,null,null,null,null,null,null,null,null,null,null,"～",null,null,"非該当",null,null,null,"～",null,"非該当",null,null,null,"～",null,"非該当"]
["",null,null,null,null,null,null,null,null,null,null,null,null,"～",null,null,"非該当",null,null,null,"～",null,"非該当",null,null,null,"～",null,"非該当"]
["",null,null,null,null,null,null,null,null,null,null,null,null,"～",null,null,"非該当",null,null,null,"～",null,"非該当",null,null,null,"～",null,"非該当"]
["",null,null,null,null,null,null,null,null,null,null,null,null,"～",null,null,"非該当",null,null,null,"～",null,"非該当",null,null,null,"～",null,"非該当"]
["",null,null,null,null,null,null,null,null,null,null,null,null,"～",null,null,"非該当",null,null,null,"～",null,"非該当",null,null,null,"～",null,"非該当"]
["",null,null,null,null,null,null,null,null,null,null,null,null,"～",null,null,"非該当",null,null,null,"～",null,"非該当",null,null,null,"～",null,"非該当"]
["",null,null,null,null,null,null,null,null,null,null,null,null,"～",null,null,"非該当",null,null,null,"～",null,"非該当",null,null,null,"～",null,"非該当"]
["",null,null,null,null,null,null,null,null,null,null,null,null,"～",null,null,"非該当",null,null,null,"～",null,"非該当",null,null,null,"～",null,"非該当"]
["",null,null,null,null,null,null,null,null,null,null,null,null,"～",null,null,"非該当",null,null,null,"～",null,"非該当",null,null,null,"～",null,"非該当"]
["",null,null,null,null,null,null,null,null,null,null,null,null,"～",null,null,"非該当",null,null,null,"～",null,"非該当",null,null,null,"～",null,"非該当"]
[{"$f":"IF(A202=\"\",\"\",IF(D203=\"\",\"\",ROW()-8))","v":""},null,null,null,null,null,null,null,null,null,null,null,null,"～",null,null,"非該当",null,null,null,"～",null,"非該当",null,null,null,"～",null,"非該当"]
["",null,null,null,null,null,null,null,null,null,null,null,null,"～",null,null,"非該当",null,null,null,"～",null,"非該当",null,null,null,"～",null,"非該当"]
["",null,null,null,null,null,null,null,null,null,null,null,null,"～",null,null,"非該当",null,null,null,"～",null,"非該当",null,null,null,"～",null,"非該当"]
["",null,null,null,null,null,null,null,null,null,null,null,null,"～",null,null,"非該当",null,null,null,"～",null,"非該当",null,null,null,"～",null,"非該当"]
["",null,null,null,null,null,null,null,null,null,null,null,null,"～",null,null,"非該当",null,null,null,"～",null,"非該当",null,null,null,"～",null,"非該当"]
["",null,null,null,null,null,null,null,null,null,null,null,null,"～",null,null,"非該当",null,null,null,"～",null,"非該当",null,null,null,"～",null,"非該当"]

{"sheet":"【保護者用】特定子ども・子育て支援提供証明書兼領収証","index":2,"n_rows":162,"n_cols":75,"rows_kept":162,"cut":false,"hidden":false,"merged":[[90,46,91,75],[154,4,155,12],[89,32,89,34],[89,27,89,29],[89,23,89,26],[89,21,89,22],[89,16,89,18],[89,11,89,13],[89,6,89,10],[109,38,109,47],[145,35,145,36],[146,35,146,36],[145,11,145,34],[146,11,146,34],[144,37,146,56],[143,0,143,10],[143,11,143,36],[143,37,143,56],[133,0,134,2],[133,3,133,11],[133,12,133,36],[133,37,134,43],[133,44,134,75],[134,3,134,11],[143,57,143,75],[144,9,144,10],[144,6,144,8],[144,4,144,5],[144,0,144,3],[144,35,144,36],[144,11,144,34],[137,0,138,2],[137,3,137,11],[137,12,137,36],[137,37,138,43],[137,44,138,75],[138,3,138,11],[138,12,138,36],[144,57,146,75],[145,0,145,3],[145,4,145,5],[145,6,145,8],[145,9,145,10],[146,0,146,3],[146,4,146,5],[146,6,146,8],[146,9,146,10],[135,0,136,2],[135,3,135,11],[135,12,135,36],[135,37,136,43],[135,44,136,75],[136,3,136,11],[136,12,136,36],[129,3,129,11],[129,12,129,36],[129,37,130,43],[129,44,130,75],[130,3,130,11],[130,12,130,36],[131,0,132,2],[131,3,131,11],[131,12,131,36],[131,37,132,43],[131,44,132,75],[132,3,132,11],[132,12,132,36],[129,0,130,2],[134,12,134,36],[118,0,119,2],[120,0,121,2],[125,0,125,67],[127,0,128,2],[127,3,127,11],[128,3,128,11],[128,12,128,36],[127,12,127,36],[127,37,128,43],[127,44,128,75],[118,3,119,75],[120,3,121,75],[122,0,122,75],[80,60,80,74],[115,35,115,75],[116,35,116,37],[116,38,116,52],[116,53,116,55],[116,56,116,75],[117,35,117,37],[117,38,117,75],[115,0,117,21],[115,22,115,34],[116,22,117,34],[82,0,82,75],[84,0,84,75],[81,0,81,11],[89,0,89,5],[89,14,89,15],[89,19,89,20],[89,30,89,31],[89,35,89,38],[86,2,86,73],[87,4,87,73],[99,0,99,67],[100,74,100,75],[75,9,75,11],[75,12,75,14],[75,15,75,27],[75,28,75,37],[75,38,75,39],[79,1,79,50],[79,51,79,74],[76,0,76,2],[76,3,76,75],[77,1,77,50],[77,51,77,74],[78,1,78,50],[78,51,78,74],[64,0,64,75],[65,0,65,14],[65,15,65,27],[65,28,65,39],[65,40,75,75],[73,0,73,2],[73,3,73,5],[73,6,73,8],[73,9,73,11],[73,12,73,14],[73,15,73,27],[73,28,73,37],[73,38,73,39],[74,0,74,2],[74,3,74,5],[74,6,74,8],[74,9,74,11],[74,12,74,14],[74,15,74,27],[74,28,74,37],[74,38,74,39],[75,0,75,2],[75,3,75,5],[75,6,75,8],[61,32,61,35],[61,36,61,39],[61,40,61,43],[61,44,61,54],[61,55,61,75],[62,3,62,75],[60,64,60,66],[60,67,60,69],[60,70,60,72],[60,73,60,75],[61,0,61,7],[61,8,61,11],[61,12,61,15],[61,16,61,19],[61,20,61,23],[61,24,61,31],[60,8,60,23],[60,32,60,43],[60,44,60,54],[60,55,60,57],[60,58,60,60],[60,61,60,63],[56,62,56,64],[56,65,56,67],[56,68,56,70],[58,0,58,69],[59,0,60,7],[59,8,59,23],[59,24,60,31],[59,32,59,43],[59,44,59,54],[59,55,59,75],[55,0,56,15],[55,16,56,34],[55,35,56,39],[55,40,55,48],[55,49,55,75],[56,40,56,48],[56,49,56,52],[56,53,56,55],[56,56,56,58],[56,59,56,61],[52,60,54,64],[52,65,54,67],[52,68,54,72],[52,73,54,75],[53,0,54,7],[53,8,54,34],[52,0,52,7],[52,8,52,34],[52,35,54,44],[52,45,54,51],[52,52,54,56],[52,57,54,59],[50,0,50,69],[51,0,51,7],[51,8,51,34],[51,35,51,44],[51,45,51,46],[51,47,51,54],[51,55,51,56],[51,57,51,64],[51,65,51,66],[51,67,51,74],[42,0,42,75],[43,0,43,75],[45,0,45,69],[46,0,46,5],[46,6,46,29],[46,30,48,34],[46,35,48,38],[46,39,46,46],[46,47,46,57],[47,0,48,5],[47,6,47,26],[47,27,47,29],[47,39,48,41],[47,42,47,75],[48,6,48,29],[48,42,48,45],[48,46,48,75],[46,58,46,60],[46,61,46,63],[46,64,46,66],[46,67,46,69],[46,70,46,72],[46,73,46,75],[38,73,38,74],[40,6,40,37],[40,38,40,42],[40,43,40,45],[40,46,40,48],[40,49,40,51],[40,52,40,59],[40,60,40,62],[40,63,40,65],[40,66,40,68],[38,56,38,59],[38,60,38,62],[38,63,38,64],[38,65,38,67],[38,68,38,69],[38,70,38,72],[40,69,40,74],[31,20,31,36],[32,20,32,36],[32,37,32,70],[37,37,37,43],[37,66,37,70],[28,56,28,60],[28,61,28,62],[29,20,29,36],[29,37,29,70],[30,20,30,36],[30,37,30,70],[31,37,31,63],[31,64,31,70],[37,44,37,65],[22,44,22,45],[22,46,22,48],[22,49,22,59],[22,60,22,61],[22,62,22,72],[22,25,22,28],[22,29,22,30],[22,31,22,33],[22,34,22,35],[22,36,22,38],[22,39,22,40],[23,1,23,74],[24,1,24,74],[26,0,26,75],[28,20,28,36],[28,37,28,41],[28,42,28,46],[28,47,28,48],[28,49,28,53],[28,54,28,55],[21,62,21,72],[21,73,21,74],[22,1,22,4],[22,5,22,8],[22,9,22,10],[22,11,22,14],[22,15,22,16],[22,17,22,20],[22,21,22,22],[22,23,22,24],[21,39,21,40],[21,41,21,43],[21,44,21,45],[21,46,21,48],[21,49,21,59],[21,60,21,61],[21,23,21,24],[21,25,21,28],[21,29,21,30],[21,31,21,33],[21,34,21,35],[21,36,21,38],[22,73,22,74],[22,41,22,43],[21,1,21,4],[21,5,21,8],[21,9,21,10],[21,11,21,14],[21,15,21,16],[21,17,21,20],[21,21,21,22],[20,36,20,38],[20,39,20,40],[20,21,20,22],[20,23,20,24],[20,25,20,28],[20,29,20,30],[20,31,20,33],[20,34,20,35],[20,1,20,4],[20,5,20,8],[20,9,20,10],[20,11,20,14],[20,15,20,16],[20,17,20,20],[18,1,18,74],[19,1,19,16],[19,17,19,30],[19,31,19,48],[19,49,19,61],[19,62,19,74],[20,60,20,61],[20,62,20,72],[20,73,20,74],[20,41,20,43],[20,44,20,45],[20,46,20,48],[20,49,20,59],[12,61,12,66],[12,67,12,72],[14,1,17,30],[14,31,14,33],[14,34,14,67],[15,31,15,33],[15,34,15,67],[16,31,16,33],[16,34,16,67],[12,23,12,28],[12,29,12,32],[12,33,12,35],[12,36,12,38],[12,39,12,41],[12,42,12,44],[12,1,12,6],[12,7,12,10],[12,11,12,13],[12,14,12,16],[12,17,12,19],[12,20,12,22],[17,31,17,33],[17,34,17,67],[12,55,12,60],[0,0,0,3],[0,4,0,7],[2,0,2,75],[4,1,6,6],[4,7,4,12],[4,13,4,39],[4,40,4,44],[5,7,6,12],[5,13,6,39],[5,40,6,44],[8,1,10,6],[8,7,8,12],[8,13,8,39],[8,40,8,55],[9,7,10,12],[9,13,10,39],[9,40,10,41],[9,42,10,47],[9,48,10,49],[9,50,10,55],[100,51,100,73],[101,0,101,8],[101,9,101,34],[102,0,103,8],[102,9,103,34],[103,35,103,48],[103,49,103,75],[104,35,104,52],[104,73,104,75],[104,69,104,72],[104,66,104,68],[104,62,104,65],[104,59,104,61],[104,53,104,58],[100,0,100,18],[100,19,100,20],[100,21,100,26],[100,27,100,28],[100,29,100,34],[100,35,100,48],[100,49,100,50],[101,35,102,75],[112,73,112,75],[161,1,161,3],[161,4,161,71],[124,0,124,8],[124,9,124,22],[124,23,124,27],[124,28,124,36],[124,37,124,41],[124,42,124,50],[124,51,124,55],[124,56,124,64],[139,0,140,2],[139,3,140,67],[142,0,142,65],[147,31,147,68],[148,1,150,3],[148,4,150,68],[151,1,151,3],[151,4,151,71],[152,4,153,12],[152,13,152,27],[152,28,152,67],[153,13,153,27],[153,28,153,67],[105,69,105,72],[154,13,154,27],[154,28,154,67],[155,13,155,27],[155,28,155,67],[156,4,160,69],[104,0,105,8],[104,9,104,34],[105,9,105,10],[105,11,105,19],[105,20,105,21],[113,36,113,52],[113,56,113,72],[114,35,114,36],[114,37,114,46],[114,47,114,48],[114,49,114,57],[114,58,114,59],[114,60,114,68],[109,0,111,34],[109,35,109,37],[109,64,109,75],[109,61,109,63],[108,0,108,67],[105,73,105,75],[106,0,106,60],[114,0,114,34],[113,73,113,75],[113,53,113,55],[109,48,109,50],[109,51,109,60],[110,48,110,50],[110,51,110,60],[110,61,110,63],[110,64,110,75],[111,35,111,37],[111,38,111,60],[110,35,110,37],[110,38,110,47],[112,53,112,55],[112,36,112,52],[112,56,112,72],[112,0,113,34],[105,35,105,52],[105,53,105,58],[105,59,105,61],[105,62,105,65],[105,66,105,68],[98,0,98,2],[98,3,98,67],[96,0,96,7],[96,8,96,75],[92,5,92,32],[93,5,95,32],[92,33,92,40],[93,33,94,40],[92,41,92,63],[95,33,95,40],[95,41,95,63],[97,0,97,2],[97,3,97,67],[92,0,95,4],[92,64,93,75],[93,41,94,63],[94,64,95,75]]}
["NO",null,null,null,1]
[]
["特定子ども・子育て支援提供証明書兼領収証"]
[]
[null,"認定\n保護者",null,null,null,null,null,"フリガナ",null,null,null,null,null,{"$f":"IF(E1=\"\",\"\",VLOOKUP(E1,【一覧表】特定子ども・子育て支援提供証明書兼領収証!$A$5:$AE$2067,9,FALSE))","v":{"$error":"#N/A"}},null,null,null,null,null,null,null,null,null,null,null,null,null,null,null,null,null,null,null,null,null,null,null,null,null,null,"認定子ども\nとの続柄"]
[null,null,null,null,null,null,null,"氏名",null,null,null,null,null,{"$f":"IF(E1=\"\",\"\",VLOOKUP(E1,【一覧表】特定子ども・子育て支援提供証明書兼領収証!$A$5:$AE$2067,8,FALSE))","v":{"$error":"#N/A"}},null,null,null,null,null,null,null,null,null,null,null,null,null,null,null,null,null,null,null,null,null,null,null,null,null,null,{"$f":"IF(E1=\"\",\"\",VLOOKUP(E1,【一覧表】特定子ども・子育て支援提供証明書兼領収証!$A$5:$AE$2067,12,FALSE))","v":{"$error":"#N/A"}}]
[]
[]
[null,"認定\n子ども",null,null,null,null,null,"フリガナ",null,null,null,null,null,{"$f":"IF(E1=\"\",\"\",VLOOKUP(E1,【一覧表】特定子ども・子育て支援提供証明書兼領収証!$A$5:$AE$2067,5,FALSE))","v":{"$error":"#N/A"}},null,null,null,null,null,null,null,null,null,null,null,null,null,null,null,null,null,null,null,null,null,null,null,null,null,null,"法第30条の４の認定種別",null,null,null,null,null,null,null,null,null,null,null,null,null,null,null,null,null,null,""]
[null,null,null,null,null,null,null,"氏名",null,null,null,null,null,{"$f":"IF(E1=\"\",\"\",VLOOKUP(E1,【一覧表】特定子ども・子育て支援提供証明書兼領収証!$A$5:$AE$2067,4,FALSE))","v":{"$error":"#N/A"}},null,null,null,null,null,null,null,null,null,null,null,null,null,null,null,null,null,null,null,null,null,null,null,null,null,null,{"$f":"IF(E1=\"\",\"\",IF(VLOOKUP(E1,【一覧表】特定子ども・子育て支援提供証明書兼領収証!$A$5:$AE$2067,7,FALSE)=\"新２号認定\",\"レ\",\"\"))","v":{"$error":"#N/A"}},null,"新２号",null,null,null,null,null,{"$f":"IF(E1=\"\",\"\",IF(VLOOKUP(E1,【一覧表】特定子ども・子育て支援提供証明書兼領収証!$A$5:$AE$2067,7,FALSE)=\"新３号認定\",\"レ\",\"\"))","v":{"$error":"#N/A"}},null,"新３号",null,null,null,null,null,null,null,null,""]
[]
[]
[null,"提供月",null,null,null,null,null,"令和",null,null,null,{"$f":"IF(IF(E1=\"\",\"\",VLOOKUP(E1,【一覧表】特定子ども・子育て支援提供証明書兼領収証!$A$5:$AE$2067,4,FALSE))=\"\",\"\",【一覧表】特定子ども・子育て支援提供証明書兼領収証!N5)","v":{"$error":"#N/A"}},null,null,"年",null,null,{"$f":"IF(IF(E1=\"\",\"\",VLOOKUP(E1,【一覧表】特定子ども・子育て支援提供証明書兼領収証!$A$5:$AE$2067,4,FALSE))=\"\",\"\",【一覧表】特定子ども・子育て支援提供証明書兼領収証!Q5)","v":{"$error":"#N/A"}},null,null,"月",null,null,"～",null,null,null,null,null,"令和",null,null,null,{"$f":"IF(IF(E1=\"\",\"\",VLOOKUP(E1,【一覧表】特定子ども・子育て支援提供証明書兼領収証!$A$5:$AE$2067,4,FALSE))=\"\",\"\",【一覧表】特定子ども・子育て支援提供証明書兼領収証!AA5)","v":{"$error":"#N/A"}},null,null,"年",null,null,{"$f":"IF(IF(E1=\"\",\"\",VLOOKUP(E1,【一覧表】特定子ども・子育て支援提供証明書兼領収証!$A$5:$AE$2067,4,FALSE))=\"\",\"\",【一覧表】特定子ども・子育て支援提供証明書兼領収証!AC5)","v":{"$error":"#N/A"}},null,null,"月",null,null,"提供分"]
[]
[null,"特定子ども・子育て支援の内容\n注）□にレを記入",null,null,null,null,null,null,null,null,null,null,null,null,null,null,null,null,null,null,null,null,null,null,null,null,null,null,null,null,null,{"$f":"IF(【一覧表】特定子ども・子育て支援提供証明書兼領収証!E3=\"認可外保育施設\",\"レ\",\"\")","v":"レ"},null,null,"認可外保育施設　※１"]
[null,null,null,null,null,null,null,null,null,null,null,null,null,null,null,null,null,null,null,null,null,null,null,null,null,null,null,null,null,null,null,{"$f":"IF(【一覧表】特定子ども・子育て支援提供証明書兼領収証!E3=\"一時預かり事業\",\"レ\",\"\")","v":""},null,null,"一時預かり事業（在園児以外）"]
[null,null,null,null,null,null,null,null,null,null,null,null,null,null,null,null,null,null,null,null,null,null,null,null,null,null,null,null,null,null,null,{"$f":"IF(【一覧表】特定子ども・子育て支援提供証明書兼領収証!E3=\"病児保育事業\",\"レ\",\"\")","v":""},null,null,"病児保育事業（病後児保育事業も含む）"]
[null,null,null,null,null,null,null,null,null,null,null,null,null,null,null,null,null,null,null,null,null,null,null,null,null,null,null,null,null,null,null,{"$f":"IF(【一覧表】特定子ども・子育て支援提供証明書兼領収証!E3=\"ファミリー・サポート・センター事業\",\"レ\",\"\")","v":""},null,null,"ファミリー・サポート・センター事業　※１"]
[null,"※１　認可外の居宅訪問型保育事業（ベビーシッター）やファミリー・サポート・センター事業については、預かりと預かりに伴う送迎の利用料のみが対象。"]
[null,"利用年月",null,null,null,null,null,null,null,null,null,null,null,null,null,null,null,"提供した日\n（提供日数）",null,null,null,null,null,null,null,null,null,null,null,null,null,"提供時間帯※２",null,null,null,null,null,null,null,null,null,null,null,null,null,null,null,null,null,"利用料(保育料)の\n領収金額\n無償化対象",null,null,null,null,null,null,null,null,null,null,null,null,"利用料(保育料)以外\nの領収金額※３\n無償化対象外"]
[null,"令和",null,null,null,{"$f":"IF(IF(E1=\"\",\"\",VLOOKUP(E1,【一覧表】特定子ども・子育て支援提供証明書兼領収証!$A$5:$AE$2067,4,FALSE))=\"\",\"\",【一覧表】特定子ども・子育て支援提供証明書兼領収証!N5)","v":{"$error":"#N/A"}},null,null,null,"年",null,{"$f":"IF(IF(E1=\"\",\"\",VLOOKUP(E1,【一覧表】特定子ども・子育て支援提供証明書兼領収証!$A$5:$AE$2067,4,FALSE))=\"\",\"\",【一覧表】特定子ども・子育て支援提供証明書兼領収証!Q5)","v":{"$error":"#N/A"}},null,null,null,"月",null,{"$f":"IF(E1=\"\",\"\",VLOOKUP(E1,【一覧表】特定子ども・子育て支援提供証明書兼領収証!$A$5:$AE$2067,13,FALSE))","v":{"$error":"#N/A"}},null,null,null,"日",null,"～",null,{"$f":"IF(E1=\"\",\"\",VLOOKUP(E1,【一覧表】特定子ども・子育て支援提供証明書兼領収証!$A$5:$AE$2067,16,FALSE))","v":{"$error":"#N/A"}},null,null,null,"日",null,{"$f":"IF(IF(E1=\"\",\"\",VLOOKUP(E1,【一覧表】特定子ども・子育て支援提供証明書兼領収証!$A$5:$AE$2067,4,FALSE))=\"\",\"\",【一覧表】特定子ども・子育て支援提供証明書兼領収証!I3)","v":{"$error":"#N/A"}},null,null,"：",null,{"$f":"IF(IF(E1=\"\",\"\",VLOOKUP(E1,【一覧表】特定子ども・子育て支援提供証明書兼領収証!$A$5:$AE$2067,4,FALSE))=\"\",\"\",【一覧表】特定子ども・子育て支援提供証明書兼領収証!K3)","v":{"$error":"#N/A"}},null,null,"～",null,{"$f":"IF(IF(E1=\"\",\"\",VLOOKUP(E1,【一覧表】特定子ども・子育て支援提供証明書兼領収証!$A$5:$AE$2067,4,FALSE))=\"\",\"\",【一覧表】特定子ども・子育て支援提供証明書兼領収証!M3)","v":{"$error":"#N/A"}},null,null,"：",null,{"$f":"IF(IF(E1=\"\",\"\",VLOOKUP(E1,【一覧表】特定子ども・子育て支援提供証明書兼領収証!$A$5:$AE$2067,4,FALSE))=\"\",\"\",【一覧表】特定子ども・子育て支援提供証明書兼領収証!O3)","v":{"$error":"#N/A"}},null,null,{"$f":"IF(E1=\"\",\"\",VLOOKUP(E1,【一覧表】特定子ども・子育て支援提供証明書兼領収証!$A$5:$AE$2067,18,FALSE))","v":{"$error":"#N/A"}},null,null,null,null,null,null,null,null,null,null,"円",null,{"$f":"IF(E1=\"\",\"\",VLOOKUP(E1,【一覧表】特定子ども・子育て支援提供証明書兼領収証!$A$5:$AE$2067,19,FALSE))","v":{"$error":"#N/A"}},null,null,null,null,null,null,null,null,null,null,"円"]
[null,"令和",null,null,null,{"$f":"IF(IF(E1=\"\",\"\",VLOOKUP(E1,【一覧表】特定子ども・子育て支援提供証明書兼領収証!$A$5:$AE$2067,4,FALSE))=\"\",\"\",【一覧表】特定子ども・子育て支援提供証明書兼領収証!U5)","v":{"$error":"#N/A"}},null,null,null,"年",null,{"$f":"IF(IF(E1=\"\",\"\",VLOOKUP(E1,【一覧表】特定子ども・子育て支援提供証明書兼領収証!$A$5:$AE$2067,4,FALSE))=\"\",\"\",【一覧表】特定子ども・子育て支援提供証明書兼領収証!W5)","v":{"$error":"#N/A"}},null,null,null,"月",null,{"$f":"IF(E1=\"\",\"\",VLOOKUP(E1,【一覧表】特定子ども・子育て支援提供証明書兼領収証!$A$5:$AE$2067,20,FALSE))","v":{"$error":"#N/A"}},null,null,null,"日",null,"～",null,{"$f":"IF(E1=\"\",\"\",VLOOKUP(E1,【一覧表】特定子ども・子育て支援提供証明書兼領収証!$A$5:$AE$2067,22,FALSE))","v":{"$error":"#N/A"}},null,null,null,"日",null,{"$f":"IF(IF(E1=\"\",\"\",VLOOKUP(E1,【一覧表】特定子ども・子育て支援提供証明書兼領収証!$A$5:$AE$2067,4,FALSE))=\"\",\"\",【一覧表】特定子ども・子育て支援提供証明書兼領収証!I3)","v":{"$error":"#N/A"}},null,null,"：",null,{"$f":"IF(IF(E1=\"\",\"\",VLOOKUP(E1,【一覧表】特定子ども・子育て支援提供証明書兼領収証!$A$5:$AE$2067,4,FALSE))=\"\",\"\",【一覧表】特定子ども・子育て支援提供証明書兼領収証!K3)","v":{"$error":"#N/A"}},null,null,"～",null,{"$f":"IF(IF(E1=\"\",\"\",VLOOKUP(E1,【一覧表】特定子ども・子育て支援提供証明書兼領収証!$A$5:$AE$2067,4,FALSE))=\"\",\"\",【一覧表】特定子ども・子育て支援提供証明書兼領収証!M3)","v":{"$error":"#N/A"}},null,null,"：",null,{"$f":"IF(IF(E1=\"\",\"\",VLOOKUP(E1,【一覧表】特定子ども・子育て支援提供証明書兼領収証!$A$5:$AE$2067,4,FALSE))=\"\",\"\",【一覧表】特定子ども・子育て支援提供証明書兼領収証!O3)","v":{"$error":"#N/A"}},null,null,{"$f":"IF(E1=\"\",\"\",VLOOKUP(E1,【一覧表】特定子ども・子育て支援提供証明書兼領収証!$A$5:$AE$2067,24,FALSE))","v":{"$error":"#N/A"}},null,null,null,null,null,null,null,null,null,null,"円",null,{"$f":"IF(E1=\"\",\"\",VLOOKUP(E1,【一覧表】特定子ども・子育て支援提供証明書兼領収証!$A$5:$AE$2067,25,FALSE))","v":{"$error":"#N/A"}},null,null,null,null,null,null,null,null,null,null,"円"]
[null,"令和",null,null,null,{"$f":"IF(IF(E1=\"\",\"\",VLOOKUP(E1,【一覧表】特定子ども・子育て支援提供証明書兼領収証!$A$5:$AE$2067,4,FALSE))=\"\",\"\",【一覧表】特定子ども・子育て支援提供証明書兼領収証!AA5)","v":{"$error":"#N/A"}},null,null,null,"年",null,{"$f":"IF(IF(E1=\"\",\"\",VLOOKUP(E1,【一覧表】特定子ども・子育て支援提供証明書兼領収証!$A$5:$AE$2067,4,FALSE))=\"\",\"\",【一覧表】特定子ども・子育て支援提供証明書兼領収証!AC5)","v":{"$error":"#N/A"}},null,null,null,"月",null,{"$f":"IF(E1=\"\",\"\",VLOOKUP(E1,【一覧表】特定子ども・子育て支援提供証明書兼領収証!$A$5:$AE$2067,26,FALSE))","v":{"$error":"#N/A"}},null,null,null,"日",null,"～",null,{"$f":"IF(E1=\"\",\"\",VLOOKUP(E1,【一覧表】特定子ども・子育て支援提供証明書兼領収証!$A$5:$AE$2067,28,FALSE))","v":{"$error":"#N/A"}},null,null,null,"日",null,{"$f":"IF(IF(E1=\"\",\"\",VLOOKUP(E1,【一覧表】特定子ども・子育て支援提供証明書兼領収証!$A$5:$AE$2067,4,FALSE))=\"\",\"\",【一覧表】特定子ども・子育て支援提供証明書兼領収証!I3)","v":{"$error":"#N/A"}},null,null,"：",null,{"$f":"IF(IF(E1=\"\",\"\",VLOOKUP(E1,【一覧表】特定子ども・子育て支援提供証明書兼領収証!$A$5:$AE$2067,4,FALSE))=\"\",\"\",【一覧表】特定子ども・子育て支援提供証明書兼領収証!K3)","v":{"$error":"#N/A"}},null,null,"～",null,{"$f":"IF(IF(E1=\"\",\"\",VLOOKUP(E1,【一覧表】特定子ども・子育て支援提供証明書兼領収証!$A$5:$AE$2067,4,FALSE))=\"\",\"\",【一覧表】特定子ども・子育て支援提供証明書兼領収証!M3)","v":{"$error":"#N/A"}},null,null,"：",null,{"$f":"IF(IF(E1=\"\",\"\",VLOOKUP(E1,【一覧表】特定子ども・子育て支援提供証明書兼領収証!$A$5:$AE$2067,4,FALSE))=\"\",\"\",【一覧表】特定子ども・子育て支援提供証明書兼領収証!O3)","v":{"$error":"#N/A"}},null,null,{"$f":"IF(E1=\"\",\"\",VLOOKUP(E1,【一覧表】特定子ども・子育て支援提供証明書兼領収証!$A$5:$AE$2067,30,FALSE))","v":{"$error":"#N/A"}},null,null,null,null,null,null,null,null,null,null,"円",null,{"$f":"IF(E1=\"\",\"\",VLOOKUP(E1,【一覧表】特定子ども・子育て支援提供証明書兼領収証!$A$5:$AE$2067,31,FALSE))","v":{"$error":"#N/A"}},null,null,null,null,null,null,null,null,null,null,"円"]
[null,"※２　提供時間帯は、標準的な利用時間帯の記入でも可。"]
[null,"※３　食材料費、教材費（日用品、文房具など）、行事参加費、通園送迎費等として領収した金額を記入。"]
[]
["　　上記のとおり認定子どもに対し、特定子ども・子育て支援を提供し、利用料を領収したことを証明します。"]
[null,null,null,null,null,null,null,null,null,null,null,null,null,null,null,null,null,null,null,null,null,null,null,null,null,null,null,null,null,null,null,null,null,null,null,null,null,1,2,3,null,5,6,7,8,9,10,11,12,13,14,15,16,17,18,19,20,21,22,23,24,25,26,27,28,29,30,31,32,33,34]
[null,null,null,null,null,null,null,null,null,null,null,null,null,null,null,null,null,null,null,null,"証明年月日",null,null,null,null,null,null,null,null,null,null,null,null,null,null,null,null,"令和",null,null,null,null,{"$f":"IF(【一覧表】特定子ども・子育て支援提供証明書兼領収証!S1=\"\",\"\",【一覧表】特定子ども・子育て支援提供証明書兼領収証!S1)","v":""},null,null,null,null,"年",null,{"$f":"IF(【一覧表】特定子ども・子育て支援提供証明書兼領収証!U1=\"\",\"\",【一覧表】特定子ども・子育て支援提供証明書兼領収証!U1)","v":""},null,null,null,null,"月",null,{"$f":"IF(【一覧表】特定子ども・子育て支援提供証明書兼領収証!W1=\"\",\"\",【一覧表】特定子ども・子育て支援提供証明書兼領収証!W1)","v":""},null,null,null,null,"日"]
[null,null,null,null,null,null,null,null,null,null,null,null,null,null,null,null,null,null,null,null,"設置者（法人等）名称",null,null,null,null,null,null,null,null,null,null,null,null,null,null,null,null,{"$f":"IF(【一覧表】特定子ども・子育て支援提供証明書兼領収証!R3=\"\",\"\",【一覧表】特定子ども・子育て支援提供証明書兼領収証!R3)","v":""}]
[null,null,null,null,null,null,null,null,null,null,null,null,null,null,null,null,null,null,null,null,"主たる事務所の所在地",null,null,null,null,null,null,null,null,null,null,null,null,null,null,null,null,{"$f":"IF(【一覧表】特定子ども・子育て支援提供証明書兼領収証!X3=\"\",\"\",【一覧表】特定子ども・子育て支援提供証明書兼領収証!X3)","v":""}]
[null,null,null,null,null,null,null,null,null,null,null,null,null,null,null,null,null,null,null,null,"代表者役職・名 ",null,null,null,null,null,null,null,null,null,null,null,null,null,null,null,null,{"$f":"IF(【一覧表】特定子ども・子育て支援提供証明書兼領収証!Z1=\"\",\"\",【一覧表】特定子ども・子育て支援提供証明書兼領収証!Z1)","v":""},null,null,null,null,null,null,null,null,null,null,null,null,null,null,null,null,null,null,null,null,null,null,null,null,null,null,"㊞"]
[null,null,null,null,null,null,null,null,null,null,null,null,null,null,null,null,null,null,null,null,"施設・事業所の名称",null,null,null,null,null,null,null,null,null,null,null,null,null,null,null,null,{"$f":"IF(【一覧表】特定子ども・子育て支援提供証明書兼領収証!I1=\"\",\"\",【一覧表】特定子ども・子育て支援提供証明書兼領収証!I1)","v":""}]
[null,"【記入時の注意】"]
[null,null,"①月ごとに記入してください。数か月分を合算して記入した場合は無効です。"]
[null,null,"②記入内容を訂正する場合は、代表役職・名の欄の押印と同じ訂正印を押してください。"]
[]
[null,null,null,null,null,null,null,null,null,null,null,null,null,null,null,null,null,null,null,null,null,null,null,null,null,null,null,null,null,null,null,null,null,null,null,null,null,"市記入欄"]
[]
[]
[]
[]
[]
[]
[]
[]
[]
[]
[]
[]
[]
[]
[]
[]
[]
[]
[]
[]
[]
[]
[]
[]
[]
[]
[]
[]
[]
[]
[]
[]
[]
[]
[]
[]
[]
[]
[]
[]
[]
[]
[null,null,null,null,null,null,null,null,null,null,null,null,null,null,null,null,null,null,null,null,null,null,null,null,null,null,null,null,null,null,null,null,null,null,null,null,null,null,null,null,null,null,null,null,null,null,null,null,null,null,null,null,null,null,null,null,null,null,null,null,"　　　年　月　日"]
["吹田市長　宛"]
["施設等利用費請求書"]
[]
["認可外保育施設等の施設等利用費"]
[]
[null,null,"　子ども・子育て支援法第30条の11第1項の規定に基づき、施設等利用費の給付について、下記の通り請求しますので、認定申請時等に指定した振込先口座に振り込んでください。\n　なお、施設等利用費の審査にあたり、次の事項に同意します。"]
[null,null,null,null,"１．請求者と認定子どもが、吹田市内に居住していることを吹田市が住民基本台帳で確認すること。\n２．利用状況及び利用料の支払い状況を吹田市が対象施設に確認すること。\n３．課税状況を吹田市が確認すること。\n４．利用給付に関する申請内容に虚偽及び事実と異なる報告があった場合、施設等利用費を返還すること。"]
[]
["請求月",null,null,null,null,null,"令和",null,null,null,null,{"$f":"IF(IF(E1=\"\",\"\",VLOOKUP(E1,【一覧表】特定子ども・子育て支援提供証明書兼領収証!$A$5:$AE$2067,4,FALSE))=\"\",\"\",【一覧表】特定子ども・子育て支援提供証明書兼領収証!N5)","v":{"$error":"#N/A"}},null,null,"年",null,{"$f":"IF(IF(E1=\"\",\"\",VLOOKUP(E1,【一覧表】特定子ども・子育て支援提供証明書兼領収証!$A$5:$AE$2067,4,FALSE))=\"\",\"\",【一覧表】特定子ども・子育て支援提供証明書兼領収証!Q5)","v":{"$error":"#N/A"}},null,null,"月",null,"～",null,"令和",null,null,null,{"$f":"IF(IF(E1=\"\",\"\",VLOOKUP(E1,【一覧表】特定子ども・子育て支援提供証明書兼領収証!$A$5:$AE$2067,4,FALSE))=\"\",\"\",【一覧表】特定子ども・子育て支援提供証明書兼領収証!AA5)","v":{"$error":"#N/A"}},null,null,"年",null,{"$f":"IF(IF(E1=\"\",\"\",VLOOKUP(E1,【一覧表】特定子ども・子育て支援提供証明書兼領収証!$A$5:$AE$2067,4,FALSE))=\"\",\"\",【一覧表】特定子ども・子育て支援提供証明書兼領収証!AC5)","v":{"$error":"#N/A"}},null,null,"月分",null,null,null,null,null,null,null,null,null,null,"捨て署名(※３)",null,null,null,null,null,null,null,null,null,null,null,null,null,null,"※自署のみ有効"]
[null,"※1",null,null,"時効(利用した月の翌月の1日から2年間)を過ぎたものは請求できません。"]
["1．施設等利用給付認定保護者(請求者)"]
["現\n住\n所",null,null,null,null,"〒",null,null,null,null,null,null,null,null,null,null,null,null,null,null,null,null,null,null,null,null,null,null,null,null,null,null,null,"フリガナ",null,null,null,null,null,null,null,null,null,null,null,null,null,null,null,null,null,null,null,null,null,null,null,null,null,null,null,null,null,null,"認定子ども\nとの続柄"]
[null,null,null,null,null,null,null,null,null,null,null,null,null,null,null,null,null,null,null,null,null,null,null,null,null,null,null,null,null,null,null,null,null,"保護者名\n（請求者名）\n(※2)",null,null,null,null,null,null,null,"※自署のみ有効"]
[]
[null,null,null,null,null,null,null,null,null,null,null,null,null,null,null,null,null,null,null,null,null,null,null,null,null,null,null,null,null,null,null,null,null,"生年月日"]
["電話番号",null,null,null,null,null,null,null,"（自宅）　　　－　　　　－　　　　　　　（携帯）　　　－　　　　　－"]
["※2",null,null,"　請求者は認定申請時等に指定した振込先口座の名義人と同一にしてください。"]
["※3",null,null,"　捨て署名は任意です。ただし、請求書に不備があった場合、捨て署名がなければ再提出が必要となります。"]
["2．認定子ども"]
["法第30条の4の認定種別",null,null,null,null,null,null,null,null,null,null,null,null,null,null,null,null,null,null,{"$f":"IF(E1=\"\",\"\",IF(VLOOKUP(E1,【一覧表】特定子ども・子育て支援提供証明書兼領収証!$A$5:$AE$2067,7,FALSE)=\"新２号認定\",\"レ\",\"\"))","v":{"$error":"#N/A"}},null,"新２号",null,null,null,null,null,{"$f":"IF(E1=\"\",\"\",IF(VLOOKUP(E1,【一覧表】特定子ども・子育て支援提供証明書兼領収証!$A$5:$AE$2067,7,FALSE)=\"新３号認定\",\"レ\",\"\"))","v":{"$error":"#N/A"}},null,"新３号",null,null,null,null,null,"支給認定者番号",null,null,null,null,null,null,null,null,null,null,null,null,null,"第",null,null,null,null,null,null,null,null,null,null,null,null,null,null,null,null,null,null,null,null,null,null,null,null,"号"]
["フリガナ",null,null,null,null,null,null,null,null,{"$f":"IF(E1=\"\",\"\",VLOOKUP(E1,【一覧表】特定子ども・子育て支援提供証明書兼領収証!$A$5:$AE$2067,5,FALSE))","v":{"$error":"#N/A"}},null,null,null,null,null,null,null,null,null,null,null,null,null,null,null,null,null,null,null,null,null,null,null,null,null,"今回請求月分の期間における住所状況"]
["児童名\n（※3）",null,null,null,null,null,null,null,null,{"$f":"IF(E1=\"\",\"\",VLOOKUP(E1,【一覧表】特定子ども・子育て支援提供証明書兼領収証!$A$5:$AE$2067,4,FALSE))","v":{"$error":"#N/A"}}]
[null,null,null,null,null,null,null,null,null,null,null,null,null,null,null,null,null,null,null,null,null,null,null,null,null,null,null,null,null,null,null,null,null,null,null,"□ 現住所のとおり"]
["生年月日",null,null,null,null,null,null,null,null,{"$f":"IF(E1=\"\",\"\",VLOOKUP(E1,【一覧表】特定子ども・子育て支援提供証明書兼領収証!$A$5:$AE$2067,6,FALSE))","v":{"$error":"#N/A"}},null,null,null,null,null,null,null,null,null,null,null,null,null,null,null,null,null,null,null,null,null,null,null,null,null,"□ 転入した（転入年月日：",null,null,null,null,null,null,null,null,null,null,null,null,null,null,null,null,null,null,null,null,null,null,null,"年",null,null,null,null,null,null,"月",null,null,null,null,null,null,"日）"]
[null,null,null,null,null,null,null,null,null,"（",null,{"$f":"IF(E1=\"\",\"\",VLOOKUP(E1,【一覧表】特定子ども・子育て支援提供証明書兼領収証!$A$5:$AE$2067,6,FALSE))","v":{"$error":"#N/A"}},null,null,null,null,null,null,null,null,"）",null,null,null,null,null,null,null,null,null,null,null,null,null,null,"□ 転出した（転出年月日：",null,null,null,null,null,null,null,null,null,null,null,null,null,null,null,null,null,null,null,null,null,null,null,"年",null,null,null,null,null,null,"月",null,null,null,null,null,null,"日）"]
["※4　認定子どもが複数いる場合は、認定子どもごとに請求書を提出してください。"]
[]
["3.  認定要件の確認　　※太枠内の内容は必ずご記入ください。"]
["認定子どもの保育を必要とする事由\n（今回申請月分の期間における保育を必要とする事由をご記入ください）",null,null,null,null,null,null,null,null,null,null,null,null,null,null,null,null,null,null,null,null,null,null,null,null,null,null,null,null,null,null,null,null,null,null,"□",null,null,"就労",null,null,null,null,null,null,null,null,null,"□",null,null,"妊娠・出産",null,null,null,null,null,null,null,null,null,"□",null,null,"疾病・障がい"]
[null,null,null,null,null,null,null,null,null,null,null,null,null,null,null,null,null,null,null,null,null,null,null,null,null,null,null,null,null,null,null,null,null,null,null,"□",null,null,"介護・看護",null,null,null,null,null,null,null,null,null,"□",null,null,"求職活動",null,null,null,null,null,null,null,null,null,"□",null,null,"就学"]
[null,null,null,null,null,null,null,null,null,null,null,null,null,null,null,null,null,null,null,null,null,null,null,null,null,null,null,null,null,null,null,null,null,null,null,"□",null,null,"その他（　　　　　　　　　）"]
["施設等利用給付認定の有効期間\n（今回申請月分の期間における認定の有効期間をご記入ください）",null,null,null,null,null,null,null,null,null,null,null,null,null,null,null,null,null,null,null,null,null,null,null,null,null,null,null,null,null,null,null,null,null,null,null,"　　年　　月　　日",null,null,null,null,null,null,null,null,null,null,null,null,null,null,null,null,"から",null,null,"　　年　　月　　日",null,null,null,null,null,null,null,null,null,null,null,null,null,null,null,null,"まで"]
[null,null,null,null,null,null,null,null,null,null,null,null,null,null,null,null,null,null,null,null,null,null,null,null,null,null,null,null,null,null,null,null,null,null,null,null,"　　年　　月　　日",null,null,null,null,null,null,null,null,null,null,null,null,null,null,null,null,"から",null,null,"　　年　　月　　日",null,null,null,null,null,null,null,null,null,null,null,null,null,null,null,null,"まで"]
["今回請求月分の期間において、届出している内容に変更はありましたか。(※4・5）",null,null,null,null,null,null,null,null,null,null,null,null,null,null,null,null,null,null,null,null,null,null,null,null,null,null,null,null,null,null,null,null,null,null,"※",null,"チェック必須",null,null,null,null,null,null,null,null,null,"□",null,"いいえ",null,null,null,null,null,null,null,null,"□",null,"はい"]
["「はい」の場合は変更年月日と変更内容を記入してください。",null,null,null,null,null,null,null,null,null,null,null,null,null,null,null,null,null,null,null,null,null,"変更年月日",null,null,null,null,null,null,null,null,null,null,null,null,"　　　　　　年　　　月　　　日"]
[null,null,null,null,null,null,null,null,null,null,null,null,null,null,null,null,null,null,null,null,null,null,"変更内容",null,null,null,null,null,null,null,null,null,null,null,null,"□",null,null,"認定事由の消滅",null,null,null,null,null,null,null,null,null,null,null,null,null,null,"□",null,null,"認定期間切れ"]
[null,null,null,null,null,null,null,null,null,null,null,null,null,null,null,null,null,null,null,null,null,null,null,null,null,null,null,null,null,null,null,null,null,null,null,"□",null,null,"認定事由の変更（　　　　 　から　　　　　　 ）"]
["\n※5\n",null,null,"\n退職・休職や勤務内容の変更など認定事由の消滅又は認定期間切れがある場合、施設等利用費は認定されている期間のみの支給となります。\n認定事由の消滅・認定期間切れ・認定事由の変更がある場合は、認定変更等の手続きを行ってください。"]
[]
["※6\n",null,null,"施設等利用費の支給後、申請内容と事実が異なることが発覚した場合は、返還請求を行うことがあります。また、虚偽の報告や文書の提出等を行った場合、10万円以下の過料が科されることがあります。"]
[]
["＜裏面も記入してください＞"]
[]
["市記入欄",null,null,null,null,null,null,null,null,{"$f":"IF(E1=\"\",\"\",IFERROR(VLOOKUP(E1,【一覧表】特定子ども・子育て支援提供証明書兼領収証!$A$5:$AE$2067,3,FALSE),\"\"))","v":""},null,null,null,null,null,null,null,null,null,null,null,null,null,"入力",null,null,null,null,null,null,null,null,null,null,null,null,null,"①",null,null,null,null,null,null,null,null,null,null,null,null,null,"②"]
["4．対象期間に利用した認可外保育施設（※7）、一時預かり事業、病児保育事業、ファミリー・サポート・センター事業"]
["（　①～⑥に書き切れない場合は、余白等に記載してください。）"]
["①",null,null,"フリガナ",null,null,null,null,null,null,null,null,null,null,null,null,null,null,null,null,null,null,null,null,null,null,null,null,null,null,null,null,null,null,null,null,null,"所在地",null,null,null,null,null,null,"〒\n\n\n電話："]
[null,null,null,"施設・\n事業名",null,null,null,null,null,null,null,null,{"$f":"IF(E1=\"\",\"\",【一覧表】特定子ども・子育て支援提供証明書兼領収証!$I$1)","v":0}]
["②",null,null,"フリガナ",null,null,null,null,null,null,null,null,null,null,null,null,null,null,null,null,null,null,null,null,null,null,null,null,null,null,null,null,null,null,null,null,null,"所在地",null,null,null,null,null,null,"〒\n\n\n電話："]
[null,null,null,"施設・\n事業名"]
["③",null,null,"フリガナ",null,null,null,null,null,null,null,null,null,null,null,null,null,null,null,null,null,null,null,null,null,null,null,null,null,null,null,null,null,null,null,null,null,"所在地",null,null,null,null,null,null,"〒\n\n\n電話："]
[null,null,null,"施設・\n事業名"]
["④",null,null,"フリガナ",null,null,null,null,null,null,null,null,null,null,null,null,null,null,null,null,null,null,null,null,null,null,null,null,null,null,null,null,null,null,null,null,null,"所在地",null,null,null,null,null,null,"〒\n\n\n電話："]
[null,null,null,"施設・\n事業名"]
["⑤",null,null,"フリガナ",null,null,null,null,null,null,null,null,null,null,null,null,null,null,null,null,null,null,null,null,null,null,null,null,null,null,null,null,null,null,null,null,null,"所在地",null,null,null,null,null,null,"〒\n\n\n電話："]
[null,null,null,"施設・\n事業名"]
["⑥",null,null,"フリガナ",null,null,null,null,null,null,null,null,null,null,null,null,null,null,null,null,null,null,null,null,null,null,null,null,null,null,null,null,null,null,null,null,null,"所在地",null,null,null,null,null,null,"〒\n\n\n電話："]
[null,null,null,"施設・\n事業名"]
["※7\n\n",null,null,"吹田市に居住する方が吹田市内又は吹田市外の認可外保育施設を利用した場合、施設等利用費の支給対象となるのは、吹田市の条例で定める基準を満たしている施設に限ります。基準を満たしているかどうかは、吹田市ホームページをご覧いただくか、保育幼稚園室へお問い合わせください。基準を満たしていない施設の場合は請求いただいてもその施設の利用料は支給対象となりませんのでご注意ください。"]
[]
[]
["5．認可外保育施設、一時預かり事業、病児保育事業、ファミリー・サポート・センター事業の施設等利用費請求額（※7）"]
["利用年月",null,null,null,null,null,null,null,null,null,null,"認可外保育施設、一時預かり事業、病児保育事業、ファミリー・サポート・センター事業に支払った月額利用料（無償化対象）の合計　(a) \n（※8）",null,null,null,null,null,null,null,null,null,null,null,null,null,null,null,null,null,null,null,null,null,null,null,null,null,"月額上限額　(b)",null,null,null,null,null,null,null,null,null,null,null,null,null,null,null,null,null,null,null,"請求額　(c)\n（※10）"]
[{"$f":"\"令和\"&IF(IF(E1=\"\",\"\",VLOOKUP(E1,【一覧表】特定子ども・子育て支援提供証明書兼領収証!$A$5:$AE$2067,4,FALSE))=\"\",\"\",【一覧表】特定子ども・子育て支援提供証明書兼領収証!N5)","v":{"$error":"#N/A"}},null,null,null,"年",null,{"$f":"IF(IF(E1=\"\",\"\",VLOOKUP(E1,【一覧表】特定子ども・子育て支援提供証明書兼領収証!$A$5:$AE$2067,4,FALSE))=\"\",\"\",【一覧表】特定子ども・子育て支援提供証明書兼領収証!Q5)","v":{"$error":"#N/A"}},null,null,"月",null,{"$f":"IF(E1=\"\",\"\",VLOOKUP(E1,【一覧表】特定子ども・子育て支援提供証明書兼領収証!$A$5:$AE$2067,18,FALSE))","v":{"$error":"#N/A"}},null,null,null,null,null,null,null,null,null,null,null,null,null,null,null,null,null,null,null,null,null,null,null,"円",null,"※9のとおり",null,null,null,null,null,null,null,null,null,null,null,null,null,null,null,null,null,null,null,"aとbを比較して\n小さい方の額"]
[{"$f":"\"令和\"&IF(IF(E1=\"\",\"\",VLOOKUP(E1,【一覧表】特定子ども・子育て支援提供証明書兼領収証!$A$5:$AE$2067,4,FALSE))=\"\",\"\",【一覧表】特定子ども・子育て支援提供証明書兼領収証!U5)","v":{"$error":"#N/A"}},null,null,null,"年",null,{"$f":"IF(IF(E1=\"\",\"\",VLOOKUP(E1,【一覧表】特定子ども・子育て支援提供証明書兼領収証!$A$5:$AE$2067,4,FALSE))=\"\",\"\",【一覧表】特定子ども・子育て支援提供証明書兼領収証!W5)","v":{"$error":"#N/A"}},null,null,"月",null,{"$f":"IF(E1=\"\",\"\",VLOOKUP(E1,【一覧表】特定子ども・子育て支援提供証明書兼領収証!$A$5:$AE$2067,24,FALSE))","v":{"$error":"#N/A"}},null,null,null,null,null,null,null,null,null,null,null,null,null,null,null,null,null,null,null,null,null,null,null,"円"]
[{"$f":"\"令和\"&IF(IF(E1=\"\",\"\",VLOOKUP(E1,【一覧表】特定子ども・子育て支援提供証明書兼領収証!$A$5:$AE$2067,4,FALSE))=\"\",\"\",【一覧表】特定子ども・子育て支援提供証明書兼領収証!AA5)","v":{"$error":"#N/A"}},null,null,null,"年",null,{"$f":"IF(IF(E1=\"\",\"\",VLOOKUP(E1,【一覧表】特定子ども・子育て支援提供証明書兼領収証!$A$5:$AE$2067,4,FALSE))=\"\",\"\",【一覧表】特定子ども・子育て支援提供証明書兼領収証!AC5)","v":{"$error":"#N/A"}},null,null,"月",null,{"$f":"IF(E1=\"\",\"\",VLOOKUP(E1,【一覧表】特定子ども・子育て支援提供証明書兼領収証!$A$5:$AE$2067,30,FALSE))","v":{"$error":"#N/A"}},null,null,null,null,null,null,null,null,null,null,null,null,null,null,null,null,null,null,null,null,null,null,null,"円"]
[]
[null,"※8\n\n※9\n",null,null,"[4]で記入した施設・事業等から発行された特定子ども・子育て支援提供証明書兼領収証を、施設・事業ごとにすべて添付してください。ファミリー・サポート・センター事業を利用された場合は、援助活動の報告も添付してください。\n利用年月ごとに、特定子ども・子育て支援提供証明書兼領収証の「利用料（保育料）の領収金額　無償化対象　」の額を記入してください。複数の施設・事業を利用した場合は、利用年月ごとに合計した額を記入してください。"]
[]
[]
[null,"※10",null,null,"月額上限額は、以下のとおりです。"]
[null,null,null,null,"新2号認定",null,null,null,null,null,null,null,null,"幼稚園等に在園していない",null,null,null,null,null,null,null,null,null,null,null,null,null,null,"月額37,000円"]
[null,null,null,null,null,null,null,null,null,null,null,null,null,"幼稚園等に在園している",null,null,null,null,null,null,null,null,null,null,null,null,null,null,"月額11,300円 - その月の預かり保育に対する施設等利用費の額"]
[null,null,null,null,"新3号認定",null,null,null,null,null,null,null,null,"幼稚園等に在園していない",null,null,null,null,null,null,null,null,null,null,null,null,null,null,"月額42,000円"]
[null,null,null,null,null,null,null,null,null,null,null,null,null,"幼稚園等に在園している",null,null,null,null,null,null,null,null,null,null,null,null,null,null,"月額16,300円 - その月の預かり保育に対する施設等利用費の額"]
[null,null,null,null,"\n複数の認可外保育施設を利用された場合でも上限額は同じです。\n月途中で認定期間が開始・終了する場合、又は別の市町村と転出入があった場合、月額上限額を日割りで計算します。\n幼稚園等に在園しながら認可外保育施設等を利用する場合、その幼稚園等が預かり保育を実施していない、又は預かり保育が十分でない場合に限り、幼稚園等・認可外保育施設等の両方の保育料が無償化の対象となります。"]
[]
[]
[]
[]
[null,"※11",null,null,"請求額は、上記算出方法に基づき市において計算を行い、施設等利用費支給決定通知書をもって決定額とします。"]